Workbook

Sheet rentals
B2: City | C2: draper | U2: List
B3: Price Minimum | C3: 1200 | U3: Any | V3: 0 | W3: =VLOOKUP(C5,U3:V11,2,FALSE) -> 1
B4: Price Maximum | C4: 2200 | I4: don't tamper | L4: don't tamper | M4: don't tamper | U4: Single-family home | V4: 1
B5: Property Type | C5: Single-family home | I5: hide | L5: hide | M5: hide | U5: Apartment | V5: 2
B6: Bedrooms (minimum) | C6: 3 | U6: Condo/Townhome | V6: 3
B7: Bathrooms (minimum) | C7: 1 | U7: Mult-family home | V7: 4
B8: Year Built (minimum) | C8: 1995 | U8: Manufactured home | V8: 5
U9: Horse/Livestock | V9: 6
U10: Single Room | V10: 7
U11: Sublease or Student Contract | V11: 8
K13: =IF(F13="","",(RIGHT((LEFT(B13,(FIND("/",B13,1)-1))),(LEN((LEFT(B13,(FIND("/",B13,1)-1)))))-(FIND("$",B13,1))))/(LEFT(F13,FIND(" ",F13,1)-1))) ->  | L13: =IF(K13="","",VALUE(((RIGHT((LEFT(B13,(FIND("/",B13,1)-1))),(LEN((LEFT(B13,(FIND("/",B13,1)-1)))))-(FIND("$",B13,1))))))) ->  | M13: =IF(K13="","",(MID(I13,FIND("?ad",I13,1)+4,FIND("&amp",I13,1)-FIND("?ad",I13,1)-4))) -> 
A14: Description & Link | B14: Price per Month | C14: Address | D14: Bedrooms | E14: Bathrooms | F14: Square Feet | G14: Year Built | H14: Date Posted | I14: Links | J14: a | K14: Rent Price / Sq. Foot | L14: Price
A15: 3 Bedrooms available !! | B15: $1,275/mo. | C15: 13343 S Minuteman Dr | D15: 3 beds | E15: 2 baths | F15: 1,215 sq. ft. | G15: 1997 | H15: Posted April 8, 2016 | I15: =HYPERLINK("http://www.ksl.com:80/homes/listing/rentler?ad=r811878&amp;PropertyTypeCode=2") -> http://www.ksl.com:80/homes/listing/rentler?ad=r811878&amp;PropertyTypeCode=2 | K15: =IF(F15="","",(RIGHT((LEFT(B15,(FIND("/",B15,1)-1))),(LEN((LEFT(B15,(FIND("/",B15,1)-1)))))-(FIND("$",B15,1))))/(LEFT(F15,FIND(" ",F15,1)-1))) -> 1.049382716 | L15: =IF(K15="","",VALUE(((RIGHT((LEFT(B15,(FIND("/",B15,1)-1))),(LEN((LEFT(B15,(FIND("/",B15,1)-1)))))-(FIND("$",B15,1))))))) -> 1275 | M15: =IF(K15="","",(MID(I15,FIND("?ad",I15,1)+4,FIND("&amp",I15,1)-FIND("?ad",I15,1)-4))) -> r811878 | O15: Average of Price | P15: Column Labels
A16: Beautiful 5BD 3BA Rambler in Draper 3000 SQ FT | B16: $1,900/mo. | C16: 725 E Sunset Ponds Dr | D16: 5 beds | E16: 3 baths | F16: 3,000 sq. ft. | G16: 1998 | H16: Posted April 10, 2016 | I16: =HYPERLINK("http://www.ksl.com:80/homes/listing/rentler?ad=r79141&amp;PropertyTypeCode=1") -> http://www.ksl.com:80/homes/listing/rentler?ad=r79141&amp;PropertyTypeCode=1 | K16: =IF(F16="","",(RIGHT((LEFT(B16,(FIND("/",B16,1)-1))),(LEN((LEFT(B16,(FIND("/",B16,1)-1)))))-(FIND("$",B16,1))))/(LEFT(F16,FIND(" ",F16,1)-1))) -> 0.6333333333 | L16: =IF(K16="","",VALUE(((RIGHT((LEFT(B16,(FIND("/",B16,1)-1))),(LEN((LEFT(B16,(FIND("/",B16,1)-1)))))-(FIND("$",B16,1))))))) -> 1900 | M16: =IF(K16="","",(MID(I16,FIND("?ad",I16,1)+4,FIND("&amp",I16,1)-FIND("?ad",I16,1)-4))) -> r79141 | O16: Row Labels | P16: 2 baths | Q16: 2.5 baths | R16: 3 baths | S16: 4 baths | T16: 3.5 baths | U16: Grand Total
A17: $1500 Includes HOA Furnished theater in basement | B17: $1,600/mo. | C17: 13548 S Villa Rosa Way | D17: 3 beds | E17: 3.5 baths | F17: 2,000 sq. ft. | G17: 2003 | H17: Posted April 8, 2016 | I17: =HYPERLINK("http://www.ksl.com:80/homes/listing/rentler?ad=r28977&amp;PropertyTypeCode=3") -> http://www.ksl.com:80/homes/listing/rentler?ad=r28977&amp;PropertyTypeCode=3 | K17: 0.8 | L17: 1600 | M17: r28977 | O17: 3 beds | P17: 1436.25 | Q17: 1722.5 | R17: 1500 | T17: 1650 | U17: 1549
A18: Beautiful 3 bed 3 bath townhouse | B18: $1,500/mo. | C18: 623 E Autumn Branch Way | D18: 3 beds | E18: 3 baths | F18: 2,300 sq. ft. | G18: 2012 | H18: Posted April 8, 2016 | I18: =HYPERLINK("http://www.ksl.com:80/homes/listing/rentler?ad=r1314009&amp;PropertyTypeCode=3") -> http://www.ksl.com:80/homes/listing/rentler?ad=r1314009&amp;PropertyTypeCode=3 | K18: 0.652173913 | L18: 1500 | M18: r1314009 | O18: 4 beds | P18: 1600 | Q18: 2100 | R18: 2000 | S18: 1700 | T18: 1800 | U18: 1866.666667
A19: Beautiful Draper Rambler. Great Views | B19: $2,100/mo. | C19: 499 E Parowan Way | D19: 4 beds | E19: 3 baths | F19: 3,359 sq. ft. | G19: 1998 | H19: Posted April 8, 2016 | I19: =HYPERLINK("http://www.ksl.com:80/homes/listing/rentler?ad=r1712836&amp;PropertyTypeCode=1") -> http://www.ksl.com:80/homes/listing/rentler?ad=r1712836&amp;PropertyTypeCode=1 | K19: 0.6251860673 | L19: 2100 | M19: r1712836 | O19: 5 beds | R19: 1947.5 | U19: 1947.5
A20: BEAUTIFUL DRAPER CONDO | B20: $1,295/mo. | C20: 191 E Spencer Peak Way | D20: 3 beds | E20: 2 baths | F20: 1,250 sq. ft. | G20: 2006 | H20: Posted April 5, 2016 | I20: =HYPERLINK("http://www.ksl.com:80/homes/listing/rentler?ad=r14011&amp;PropertyTypeCode=3") -> http://www.ksl.com:80/homes/listing/rentler?ad=r14011&amp;PropertyTypeCode=3 | K20: 1.036 | L20: 1295 | M20: r14011 | O20: Grand Total | P20: 1469 | Q20: 1848.333333 | R20: 1815.833333 | S20: 1700 | T20: 1700 | U20: 1699.166667
A21: Spacious 3 Bd 2 Ba 1780 sq ft End Unit Townhome | B21: $1,275/mo. | C21: 409 E Culross Ln | D21: 3 beds | E21: 2 baths | F21: 1,780 sq. ft. | G21: 2001 | H21: Posted April 4, 2016 | I21: =HYPERLINK("http://www.ksl.com:80/homes/listing/rentler?ad=r476585&amp;PropertyTypeCode=3") -> http://www.ksl.com:80/homes/listing/rentler?ad=r476585&amp;PropertyTypeCode=3 | K21: 0.7162921348 | L21: 1275 | M21: r476585
A22: Beautiful Draper 3bed | B22: $1,495/mo. | C22: 71 E Bella Monte Dr | D22: 3 beds | E22: 2.5 baths | F22: 1,700 sq. ft. | G22: 2007 | H22: Posted April 3, 2016 | I22: =HYPERLINK("http://www.ksl.com:80/homes/listing/rentler?ad=r1336745&amp;PropertyTypeCode=3") -> http://www.ksl.com:80/homes/listing/rentler?ad=r1336745&amp;PropertyTypeCode=3 | K22: 0.8794117647 | L22: 1495 | M22: r1336745
A23: Spacious 5 Bedroom Draper Mountain House | B23: $1,995/mo. | C23: 14024 S New Saddle Rd | D23: 5 beds | E23: 3 baths | F23: 3,073 sq. ft. | G23: 2003 | H23: Posted April 1, 2016 | I23: =HYPERLINK("http://www.ksl.com:80/homes/listing/rentler?ad=r1660104&amp;PropertyTypeCode=1") -> http://www.ksl.com:80/homes/listing/rentler?ad=r1660104&amp;PropertyTypeCode=1 | K23: 0.6492027335 | L23: 1995 | M23: r1660104
A24: Townhome for rent in Draper | B24: $1,500/mo. | C24: 14108 S Pepi Band Rd | D24: 3 beds | E24: 3 baths | F24: 1,742 sq. ft. | G24: 1997 | H24: Posted March 31, 2016 | I24: =HYPERLINK("http://www.ksl.com:80/homes/listing/rentler?ad=r1049561&amp;PropertyTypeCode=3") -> http://www.ksl.com:80/homes/listing/rentler?ad=r1049561&amp;PropertyTypeCode=3 | K24: 0.8610792193 | L24: 1500 | M24: r1049561
A25: Great Deal -3000 SF walkout basement | B25: $1,600/mo. | C25: 929 E Rocky Mouth Ln | D25: 4 beds | E25: 2 baths | F25: 3,000 sq. ft. | G25: 1997 | H25: Posted March 30, 2016 | I25: =HYPERLINK("http://www.ksl.com:80/homes/listing/rentler?ad=r478881&amp;PropertyTypeCode=1") -> http://www.ksl.com:80/homes/listing/rentler?ad=r478881&amp;PropertyTypeCode=1 | K25: 0.5333333333 | L25: 1600 | M25: r478881
A26: 3 bed2bath new | B26: $1,900/mo. | C26: 497 W Sunland Dr | D26: 3 beds | E26: 2 baths | F26: 3,200 sq. ft. | G26: 2015 | H26: Posted March 30, 2016 | I26: =HYPERLINK("http://www.ksl.com:80/homes/listing/rentler?ad=r1433939&amp;PropertyTypeCode=7") -> http://www.ksl.com:80/homes/listing/rentler?ad=r1433939&amp;PropertyTypeCode=7 | K26: 0.59375 | L26: 1900 | M26: r1433939
A27: Darling Draper Townhome for rent | B27: $1,700/mo. | C27: 13585 S Luscerno Dr | D27: 4 beds | E27: 4 baths | F27: 1,815 sq. ft. | G27: 2009 | H27: Posted March 25, 2016 | I27: =HYPERLINK("http://www.ksl.com:80/homes/listing/rentler?ad=r1691947&amp;PropertyTypeCode=3") -> http://www.ksl.com:80/homes/listing/rentler?ad=r1691947&amp;PropertyTypeCode=3 | K27: 0.9366391185 | L27: 1700 | M27: r1691947
A28: Draper 4 Bed w/ Landscaping! Hardwood! Fireplace! | B28: $1,900/mo. | C28: 513 East Steep Mountain Drive | D28: 4 beds | E28: 3 baths | F28: 2,800 sq. ft. | G28: 2005 | H28: Posted March 24, 2016 | I28: =HYPERLINK("http://www.ksl.com:80/homes/listing/rentler?ad=r105194&amp;PropertyTypeCode=1") -> http://www.ksl.com:80/homes/listing/rentler?ad=r105194&amp;PropertyTypeCode=1 | K28: 0.6785714286 | L28: 1900 | M28: r105194
A29: DRAPER BEST LOCATION NEW PAINT/CARPET | B29: $1,800/mo. | C29: 235 E Rawlins Ln | D29: 4 beds | E29: 3.5 baths | F29: 2,100 sq. ft. | G29: 1996 | H29: Posted March 23, 2016 | I29: =HYPERLINK("http://www.ksl.com:80/homes/listing/rentler?ad=r1681960&amp;PropertyTypeCode=1") -> http://www.ksl.com:80/homes/listing/rentler?ad=r1681960&amp;PropertyTypeCode=1 | K29: 0.8571428571 | L29: 1800 | M29: r1681960
A30: 3 bed $1700 | B30: $1,700/mo. | C30: 13460 S 1300 E | D30: 3 beds | E30: 3.5 baths | F30: 2,150 sq. ft. | G30: 2014 | H30: Posted March 19, 2016 | I30: =HYPERLINK("http://www.ksl.com:80/homes/listing/rentler?ad=r1052993&amp;PropertyTypeCode=1") -> http://www.ksl.com:80/homes/listing/rentler?ad=r1052993&amp;PropertyTypeCode=1 | K30: 0.7906976744 | L30: 1700 | M30: r1052993
A31: Draper Condo | B31: $1,950/mo. | C31: 615 E Harvest Bend Way | D31: 3 beds | E31: 2.5 baths | F31: 2,300 sq. ft. | G31: 2010 | H31: Posted March 16, 2016 | I31: =HYPERLINK("http://www.ksl.com:80/homes/listing/rentler?ad=r1661864&amp;PropertyTypeCode=3") -> http://www.ksl.com:80/homes/listing/rentler?ad=r1661864&amp;PropertyTypeCode=3 | K31: 0.847826087 | L31: 1950 | M31: r1661864
A32: 3100 Sqft Beautiful CuldeSac Home | B32: $2,100/mo. | C32: 12542 S Stonebridge Cir | D32: 4 beds | E32: 2.5 baths | F32: 3,100 sq. ft. | G32: 1997 | H32: Posted March 14, 2016 | I32: =HYPERLINK("http://www.ksl.com:80/homes/listing/rentler?ad=r13129&amp;PropertyTypeCode=1") -> http://www.ksl.com:80/homes/listing/rentler?ad=r13129&amp;PropertyTypeCode=1 | K32: 0.6774193548 | L32: 2100 | M32: r13129
K80: =IF(F80="","",(RIGHT((LEFT(B80,(FIND("/",B80,1)-1))),(LEN((LEFT(B80,(FIND("/",B80,1)-1)))))-(FIND("$",B80,1))))/(LEFT(F80,FIND(" ",F80,1)-1))) ->  | L80: =IF(K80="","",VALUE(((RIGHT((LEFT(B80,(FIND("/",B80,1)-1))),(LEN((LEFT(B80,(FIND("/",B80,1)-1)))))-(FIND("$",B80,1))))))) ->  | M80: =IF(K80="","",(MID(I80,FIND("?ad",I80,1)+4,FIND("&amp",I80,1)-FIND("?ad",I80,1)-4))) -> 
K144: =IF(F144="","",(RIGHT((LEFT(B144,(FIND("/",B144,1)-1))),(LEN((LEFT(B144,(FIND("/",B144,1)-1)))))-(FIND("$",B144,1))))/(LEFT(F144,FIND(" ",F144,1)-1))) ->  | L144: =IF(K144="","",VALUE(((RIGHT((LEFT(B144,(FIND("/",B144,1)-1))),(LEN((LEFT(B144,(FIND("/",B144,1)-1)))))-(FIND("$",B144,1))))))) ->  | M144: =IF(K144="","",(MID(I144,FIND("?ad",I144,1)+4,FIND("&amp",I144,1)-FIND("?ad",I144,1)-4))) -> 
L167: =IF(K167="","",VALUE(((RIGHT((LEFT(B167,(FIND("/",B167,1)-1))),(LEN((LEFT(B167,(FIND("/",B167,1)-1)))))-(FIND("$",B167,1))))))) ->  | M167: =IF(K167="","",(MID(I167,FIND("?ad",I167,1)+4,FIND("&amp",I167,1)-FIND("?ad",I167,1)-4))) -> 
L208: =IF(K208="","",VALUE(((RIGHT((LEFT(B208,(FIND("/",B208,1)-1))),(LEN((LEFT(B208,(FIND("/",B208,1)-1)))))-(FIND("$",B208,1))))))) ->  | M208: =IF(K208="","",(MID(I208,FIND("?ad",I208,1)+4,FIND("&amp",I208,1)-FIND("?ad",I208,1)-4))) -> 

Sheet for sale
B2: City | C2: draper
B3: Price Minimum | C3: 175000
B4: Price Maximum | C4: 350000
B5: Bedrooms (minimum) | C5: 2
B6: Bathrooms (minimum) | C6: 1
B7: Year Built (minimum) | C7: 1995 | J7: don't tamper
B8: Square footage (minimum) | C8: 1000 | J8: will hide
I13: =IF(G13="","",B13/(LEFT(G13,4))) -> 
A14: Description & Link | B14: Price | C14: Bedrooms | D14: Bathrooms | E14: Square Feet | F14: Year Built | G14: Days Online | H14: a | I14: Price / Sq. Foot | L14: Average of Price | M14: Column Labels
A15: 15063 S Junction Circle Draper, UT 84020 | B15: 325000 | C15: 4 beds | D15: 3 baths | E15: 2745 sq. ft. | F15: 1998 | G15: 0 days | I15: =IF(G15="","",B15/(LEFT(E15,4))) -> 118.3970856 | J15: 40016152 | L15: Row Labels | M15: 2 baths | N15: 2.5 baths | O15: 3 baths | P15: 3.5 baths | Q15: 4 baths | R15: Grand Total
A16: 14254 S Daisyfield Dr Draper, UT 84020 | B16: 186500 | C16: 3 beds | D16: 2.5 baths | E16: 1308 sq. ft. | F16: 2000 | G16: 0 days | I16: =IF(G16="","",B16/(LEFT(E16,4))) -> 142.5840979 | J16: 40016121 | L16: 2 beds | M16: 284900 | N16: 205959.8 | O16: 199900 | R16: 216371.2857
A17: 1839 E Longbranch Dr S Draper, UT 84020 | B17: 339900 | C17: 6 beds | D17: 4 baths | E17: 2761 sq. ft. | F17: 2005 | G17: 1 days | I17: 123.1075697 | J17: 40005717 | L17: 3 beds | M17: 250912.2667 | N17: 252880.3571 | O17: 269200 | P17: 236633.3333 | R17: 252519.6944
A18: 14278 S Draper Hill Dr Draper, UT 84020 | B18: 260000 | C18: 3 beds | D18: 2.5 baths | E18: 2308 sq. ft. | F18: 2014 | G18: 2 days | I18: 112.6516464 | J18: 40015576 | L18: 4 beds | M18: 289000 | O18: 313224.2857 | R18: 310196.25
A19: 438 W Long Creek Ln Draper, UT 84020 | B19: 287900 | C19: 3 beds | D19: 3 baths | E19: 2077 sq. ft. | F19: 2012 | G19: 2 days | I19: 138.6133847 | J19: 40015571 | L19: 5 beds | P19: 329900 | R19: 329900
A20: 604 E Rocky Mouth Ln Draper, UT 84020 | B20: 330000 | C20: 3 beds | D20: 2.5 baths | E20: 2365 sq. ft. | F20: 1999 | G20: 2 days | I20: 139.5348837 | J20: 40015451 | L20: 6 beds | O20: 327450 | Q20: 339900 | R20: 331600
A21: 693 Buckie Ct Draper, UT 84020 | B21: 296170 | C21: 3 beds | D21: 2.5 baths | E21: 1690 sq. ft. | F21: 2016 | G21: 3 days | I21: 175.2485207 | J21: 40015224 | L21: Grand Total | M21: 255152 | N21: 240532.8421 | O21: 294583.5714 | P21: 273940 | Q21: 339900 | R21: 263240.6786
A22: 12215 South 670 East Draper, UT 84020 | B22: 185900 | C22: 3 beds | D22: 2 baths | E22: 1150 sq. ft. | F22: 2011 | G22: 3 days | I22: 161.6521739 | J22: 40014978
A23: 238 W BEVERLEE ANN DR Draper, UT 84020 | B23: 289900 | C23: 4 beds | D23: 3 baths | E23: 2354 sq. ft. | F23: 2001 | G23: 5 days | I23: 123.1520816 | J23: 40014439
A24: 238 W Beverlee Ann Dr Draper, UT 84020 | B24: 289900 | C24: 4 beds | D24: 3 baths | E24: 2354 sq. ft. | F24: 2001 | G24: 5 days | I24: 123.1520816 | J24: 40014426
A25: 264 W 13165 S Draper, UT 84020 | B25: 240000 | C25: 3 beds | D25: 2 baths | E25: 2041 sq. ft. | F25: 2002 | G25: 5 days | I25: 117.589417 | J25: 40008294
A26: 11989 S Draperville Ave Draper, UT 84020 | B26: 199900 | C26: 2 beds | D26: 3 baths | E26: 1391 sq. ft. | F26: 1998 | G26: 5 days | I26: 143.7095615 | J26: 40014169
A27: 640 E NORMANDY LOOP LN Draper, UT 84020 | B27: 284900 | C27: 2 beds | D27: 2 baths | E27: 2684 sq. ft. | F27: 2006 | G27: 6 days | I27: 106.147541 | J27: 40013722
A28: 611 E Autumn Branch Way S Draper, UT 84020 | B28: 260000 | C28: 3 beds | D28: 3 baths | E28: 2213 sq. ft. | F28: 2012 | G28: 8 days | I28: 117.4875734 | J28: 40013299
A29: 14293 S Honeyfield Dr Draper, UT 84020 | B29: 289000 | C29: 4 beds | D29: 2 baths | E29: 1886 sq. ft. | F29: 1999 | G29: 9 days | I29: 153.2343584 | J29: 40012911
A30: 56 E Saddle Villa Dr # 40 Draper, UT 84020 | B30: 199900 | C30: 3 beds | D30: 2 baths | E30: 1270 sq. ft. | F30: 2009 | G30: 11 days | I30: 157.4015748 | J30: 40012317
A31: 240 West Inauguration Road Suite 600 Draper, UT 84020 | B31: 279000 | C31: 3 beds | D31: 2.5 baths | E31: 1956 sq. ft. | F31: 1996 | G31: 13 days | I31: 142.6380368 | J31: 40011333
A32: NO MONEY DOWN PROGRAMS AVAILABLE!! 264 13165 Draper, UT 84020 | B32: 240000 | C32: 3 beds | D32: 2 baths | E32: 2041 sq. ft. | F32: 2002 | G32: 14 days | I32: 117.589417 | J32: 40010913
A33: 264 W 13165 S Draper, UT 84020 | B33: 240000 | C33: 3 beds | D33: 2 baths | E33: 2041 sq. ft. | F33: 2002 | G33: 15 days | I33: 117.589417 | J33: 40010771
A34: 643 E Wyngate Pointe Ln Draper, UT 84020 | B34: 269900 | C34: 3 beds | D34: 2.5 baths | E34: 2431 sq. ft. | F34: 2006 | G34: 16 days | I34: 111.0242698 | J34: 40010697
A35: 264 W 13165 S Draper, UT 84020 | B35: 240000 | C35: 3 beds | D35: 2 baths | E35: 2041 sq. ft. | F35: 2002 | G35: 16 days | I35: 117.589417 | J35: 40010413
A36: 264 W 13165 S Draper, UT 84020 | B36: 240000 | C36: 3 beds | D36: 2 baths | E36: 2041 sq. ft. | F36: 2002 | G36: 18 days | I36: 117.589417 | J36: 40009791
A37: 264 W 13165 S Draper, UT 84020 | B37: 240000 | C37: 3 beds | D37: 2 baths | E37: 2041 sq. ft. | F37: 2002 | G37: 18 days | I37: 117.589417 | J37: 40009655
A38: 264 W 13165 S Draper, UT 84020 | B38: 240000 | C38: 3 beds | D38: 2 baths | E38: 1609 sq. ft. | F38: 2002 | G38: 19 days | I38: 149.1609695 | J38: 40009404
A39: 264 W 13165 S Draper, UT 84020 | B39: 240000 | C39: 3 beds | D39: 2 baths | E39: 2041 sq. ft. | F39: 2002 | G39: 19 days | I39: 117.589417 | J39: 40009342
A40: 14788 S Dryburg Cv Draper, UT 84020 | B40: 240000 | C40: 3 beds | D40: 3.5 baths | E40: 2088 sq. ft. | F40: 2006 | G40: 19 days | I40: 114.9425287 | J40: 40009254
A41: 264 W 13165 S Draper, UT 84020 | B41: 240000 | C41: 3 beds | D41: 2 baths | E41: 2041 sq. ft. | F41: 2002 | G41: 19 days | I41: 117.589417 | J41: 40009166
A42: 2156 E Whitekirk Way Draper, UT 84020 | B42: 235000 | C42: 3 beds | D42: 3.5 baths | E42: 2002 sq. ft. | F42: 2006 | G42: 23 days | I42: 117.3826174 | J42: 40008096
A43: 907 E Rosebud Ct Draper, UT 84020 | B43: 329900 | C43: 5 beds | D43: 3.5 baths | E43: 3461 sq. ft. | F43: 2002 | G43: 25 days | I43: 95.31927189 | J43: 40007428
A44: 14276 S Draper Hill Dr Draper, UT 84020 | B44: 259900 | C44: 3 beds | D44: 2.5 baths | E44: 2308 sq. ft. | F44: 2014 | G44: 25 days | I44: 112.6083189 | J44: 40007310
A45: 87 E Bridle Villa Dr Draper, UT 84020 | B45: 215000 | C45: 2 beds | D45: 2.5 baths | E45: 1405 sq. ft. | F45: 2009 | G45: 26 days | I45: 153.024911 | J45: 40007062
A46: 907 E Rosebud Ct Draper, UT 84020 | B46: 329900 | C46: 5 beds | D46: 3.5 baths | E46: 3461 sq. ft. | F46: 2002 | G46: 26 days | I46: 95.31927189 | J46: 40006853
A47: 1956 E Brookings Dr Draper, UT 84020 | B47: 350000 | C47: 4 beds | D47: 3 baths | E47: 3632 sq. ft. | F47: 2010 | G47: 27 days | I47: 96.36563877 | J47: 40006583
A48: 71 E Bridle Villa Dr Draper, UT 84020 | B48: 211900 | C48: 2 beds | D48: 2.5 baths | E48: 1420 sq. ft. | F48: 2008 | G48: 29 days | I48: 149.2253521 | J48: 38378609
A49: 549 E Braidhill Dr Draper, UT 84020 | B49: 189999 | C49: 2 beds | D49: 2.5 baths | E49: 1600 sq. ft. | F49: 2003 | G49: 30 days | I49: 118.749375 | J49: 40005326
A50: 14301 S Draper Hill Dr Draper, UT 84020 | B50: 259900 | C50: 3 beds | D50: 2.5 baths | E50: 2308 sq. ft. | F50: 2014 | G50: 34 days | I50: 112.6083189 | J50: 40003946
A51: 743 E Sunset Ponds Dr Draper, UT 84020 | B51: 299900 | C51: 4 beds | D51: 3 baths | E51: 2558 sq. ft. | F51: 1998 | G51: 34 days | I51: 117.2400313 | J51: 35832548
A52: Under contract Draper, UT 84020 | B52: 266900 | C52: 3 beds | D52: 2.5 baths | E52: 2237 sq. ft. | F52: 2011 | G52: 36 days | I52: 119.311578 | J52: 40003224
A53: 12173 S Fox Chase Dr Draper, UT 84020 | B53: 240940 | C53: 3 beds | D53: 2.5 baths | E53: 2202 sq. ft. | F53: 2016 | G53: 39 days | I53: 109.4187103 | J53: 38308173
A54: 12216 S Pixie Dr Draper, UT 84020 | B54: 244615 | C54: 3 beds | D54: 2.5 baths | E54: 2202 sq. ft. | F54: 2015 | G54: 39 days | I54: 111.0876476 | J54: 38468516
A55: 1952 E Brookings Dr Draper, UT 84020 | B55: 344900 | C55: 6 beds | D55: 3 baths | E55: 3190 sq. ft. | F55: 2006 | G55: 47 days | I55: 108.1191223 | J55: 38622682
A56: 248 East 13800 South Unit # 23 Draper, UT 84020 | B56: 229900 | C56: 2 beds | D56: 2.5 baths | E56: 1777 sq. ft. | F56: 2012 | G56: 50 days | I56: 129.3753517 | J56: 38586798
A57: 14981 S Eagle Crest Dr Draper, UT 84020 | B57: 330000 | C57: 3 beds | D57: 2 baths | E57: 3119 sq. ft. | F57: 2006 | G57: 59 days | I57: 105.803142 | J57: 38472181
A58: 11717 S Shadow View Ln Draper, UT 84020 | B58: 259900 | C58: 3 beds | D58: 3 baths | E58: 2270 sq. ft. | F58: 2010 | G58: 65 days | I58: 114.4933921 | J58: 36225571
A59: 1755 E Lone Oak Dr Draper, UT 84020 | B59: 307970 | C59: 4 beds | D59: 3 baths | E59: 2966 sq. ft. | F59: 2001 | G59: 68 days | I59: 103.8334457 | J59: 38368410
A60: 407 E Culross Ln Draper, UT 84020 | B60: 188400 | C60: 3 beds | D60: 2.5 baths | E60: 1780 sq. ft. | F60: 2001 | G60: 68 days | I60: 105.8426966 | J60: 38367601
A61: 525 W Sunpark Ln Draper, UT 84020 | B61: 277985 | C61: 3 beds | D61: 2 baths | E61: 3276 sq. ft. | F61: 2016 | G61: 73 days | I61: 84.85500611 | J61: 38308746
A62: 955 E Senior Band Rd Draper, UT 84020 | B62: 234900 | C62: 3 beds | D62: 3.5 baths | E62: 2150 sq. ft. | F62: 1999 | G62: 79 days | I62: 109.255814 | J62: 38238358
A63: 2014 E Brookings Dr Draper, UT 84020 | B63: 299900 | C63: 3 beds | D63: 2 baths | E63: 3098 sq. ft. | F63: 2006 | G63: 82 days | I63: 96.80438993 | J63: 38197508
A64: 14782 S DEER PARK LN Draper, UT 84020 | B64: 178200 | C64: 3 beds | D64: 2.5 baths | E64: 2204 sq. ft. | F64: 2009 | G64: 91 days | I64: 80.85299456 | J64: 38084870
A65: 15151 S Walnut Grove Dr Draper, UT 84020 | B65: 269000 | C65: 3 beds | D65: 3 baths | E65: 2074 sq. ft. | F65: 2001 | G65: 94 days | I65: 129.7010608 | J65: 38051754
A66: 14209 Draper, UT 84020 | B66: 310000 | C66: 6 beds | D66: 3 baths | E66: 3048 sq. ft. | F66: 1996 | G66: 124 days | I66: 101.7060367 | J66: 35034271
A67: 14152 S Radial Ln Draper, UT 84020 | B67: 309999 | C67: 3 beds | D67: 2 baths | E67: 3023 sq. ft. | F67: 1996 | G67: 138 days | I67: 102.5468078 | J67: 37499999
A68: 743 E Sunset Ponds Dr Draper, UT 84020 | B68: 329900 | C68: 4 beds | D68: 3 baths | E68: 2558 sq. ft. | F68: 1998 | G68: 139 days | I68: 128.9679437 | J68: 34804667
A69: 182 E Rideout Hall Ln Draper, UT 84020 | B69: 183000 | C69: 2 beds | D69: 2.5 baths | E69: 1124 sq. ft. | F69: 1999 | G69: 141 days | I69: 162.8113879 | J69: 37455348
A70: 15159 S Eagle Chase Dr Draper, UT 84020 | B70: 279900 | C70: 3 beds | D70: 2.5 baths | E70: 2748 sq. ft. | F70: 2006 | G70: 180 days | I70: 101.8558952 | J70: 36941557
J71: 38223756
J72: 38223153
J73: 38199337
J74: 38137722
J75: 38068991
J76: 38058658
J77: 38030631
J78: 37919441
J79: 37765844
I80: =IF(G80="","",B80/(LEFT(E80,4))) ->  | J80: 37726054
J81: 37694859
J82: 37498004
J83: 37040344
J84: 37218792
J85: 37181240
J86: 37051428
J87: 36853313
J88: 36820710
J89: 36780384
I144: =IF(G144="","",B144/(LEFT(E144,4))) -> 

Sheet favorites (hidden)
A2: 154 E CRESCENT PINE LN Sandy, UT 84070 | B2: 319900 | C2: 4 beds | D2: 3 baths | E2: 2407 sq. ft. | F2: 2011 | G2: 7 days

Sheet Rental P&L
B1: Rental P&L | L1: Ratios
L2: First-Year Investment Measures
D4: Year 0 | E4: Year 1 | F4: Year 2 | G4: Year 3 | H4: Year 4 | I4: Year 5 | L4: Payback Period | N4: =ROUND((ABS(D34)/E34),1)&" years" -> -35.4 years
C5: + Potential Gross Income | E5: =Inputs!$E$13*12 -> 18000 | F5: =(E5)*(1+Inputs!$E$28) -> 18180 | G5: =(F5)*(1+Inputs!$E$28) -> 18361.8 | H5: =(G5)*(1+Inputs!$E$28) -> 18545.418 | I5: =(H5)*(1+Inputs!$E$28) -> 18730.87218 | L5: Profit Margin | N5: =E34/E9 -> -0.02991711562
C6: - Vacancy & Collections Loss | E6: =(Inputs!$E$15/52)*E5 -> 1384.615385 | F6: =(Inputs!$E$15/52)*F5 -> 1398.461538 | G6: =(Inputs!$E$15/52)*G5 -> 1412.446154 | H6: =(Inputs!$E$15/52)*H5 -> 1426.570615 | I6: =(Inputs!$E$15/52)*I5 -> 1440.836322 | L6: Default Ratio | N6: =(E17+E22)/E9 -> 0.9869235321
C7: + Other Income | E7: =Inputs!$E$14 -> 0 | F7: =Inputs!$E$14 -> 0 | G7: =Inputs!$E$14 -> 0 | H7: =Inputs!$E$14 -> 0 | I7: =Inputs!$E$14 -> 0 | L7: Operating Expense Ratio | N7: =E17/E9 -> 0.2662916667
L8: Debt-Coverage Ratio
C9: = Effective Gross Income | E9: =E5-E6+E7 -> 16615.38462 | F9: =F5-F6+F7 -> 16781.53846 | G9: =G5-G6+G7 -> 16949.35385 | H9: =H5-H6+H7 -> 17118.84738 | I9: =I5-I6+I7 -> 17290.03586 | N9: =E19/E22 -> 1.018145836
C11: Operating Expenses | L11: Loan-to-Value Ratio | N11: =(Inputs!E4-Inputs!E7-(Inputs!E4*Inputs!E5))/Inputs!E4 -> 0.9499998636
C12: - Property Taxes | E12: =Inputs!$E$17 -> 1000 | F12: =E12*(1+Inputs!$E$29) -> 1010 | G12: =F12*(1+Inputs!$E$29) -> 1020.1 | H12: =G12*(1+Inputs!$E$29) -> 1030.301 | I12: =H12*(1+Inputs!$E$29) -> 1040.60401 | L12: EGI Multiplier | N12: =Inputs!E4/E9 -> 13.24074074
C13: - Landlord Insurance | E13: =Inputs!$E$18 -> 963 | F13: =E13*(1+Inputs!$E$29) -> 972.63 | G13: =F13*(1+Inputs!$E$29) -> 982.3563 | H13: =G13*(1+Inputs!$E$29) -> 992.179863 | I13: =H13*(1+Inputs!$E$29) -> 1002.101662 | L13: CAP Rate | N13: =E19/Inputs!E4 -> 0.05541293706
C14: - Property Management Fee | E14: =Inputs!$E$16*E9 -> 1661.538462 | F14: =Inputs!$E$16*F9 -> 1678.153846 | G14: =Inputs!$E$16*G9 -> 1694.935385 | H14: =Inputs!$E$16*H9 -> 1711.884738 | I14: =Inputs!$E$16*I9 -> 1729.003586 | L14: BTCF Return | N14: =-E24/D31 -> -0.104313852
C15: - HOA Association Fees | E15: =Inputs!$E$19*12 -> 600 | F15: =E15*(1+Inputs!$E$29) -> 606 | G15: =F15*(1+Inputs!$E$29) -> 612.06 | H15: =G15*(1+Inputs!$E$29) -> 618.1806 | I15: =H15*(1+Inputs!$E$29) -> 624.362406 | L15: ATCF Return | N15: =-E29/D31 -> -0.02824343083
C16: - Maintenance & Repairs | E16: =Inputs!$E$20 -> 200 | F16: =E16*(1+Inputs!$E$29) -> 202 | G16: =F16*(1+Inputs!$E$29) -> 204.02 | H16: =G16*(1+Inputs!$E$29) -> 206.0602 | I16: =H16*(1+Inputs!$E$29) -> 208.120802
C17: Total Operating Expenses | E17: =SUM(E12:E16) -> 4424.538462 | F17: =SUM(F12:F16) -> 4468.783846 | G17: =SUM(G12:G16) -> 4513.471685 | H17: =SUM(H12:H16) -> 4558.606401 | I17: =SUM(I12:I16) -> 4604.192465 | L17: Holding Period Measures
C19: = Net Operating Income | E19: =E9-E17 -> 12190.84615 | F19: =F9-F17 -> 12312.75462 | G19: =G9-G17 -> 12435.88216 | H19: =H9-H17 -> 12560.24098 | I19: =I9-I17 -> 12685.84339 | L19: NPV | N19: =NPV(Inputs!E24,E34:I34)+D34 -> 509.6050681
L20: IRR
C21: - Private Mortgage Insurance | E21: =Inputs!$E$6*('Amortization Table'!$C$3-VLOOKUP(E$4,'Amortization Table'!$J:$N,5,FALSE)) -> 2053.194339 | F21: =Inputs!$E$6*('Amortization Table'!$C$3-VLOOKUP(F$4,'Amortization Table'!$J:$N,5,FALSE)) -> 2014.889158 | G21: =Inputs!$E$6*('Amortization Table'!$C$3-VLOOKUP(G$4,'Amortization Table'!$J:$N,5,FALSE)) -> 1975.023365 | H21: =Inputs!$E$6*('Amortization Table'!$C$3-VLOOKUP(H$4,'Amortization Table'!$J:$N,5,FALSE)) -> 1933.533378 | I21: =Inputs!$E$6*('Amortization Table'!$C$3-VLOOKUP(I$4,'Amortization Table'!$J:$N,5,FALSE)) -> 1890.353025 | N21: =IFERROR(IRR(D34:I34),"n/a") -> 0.08594285433
C22: - Annual Debt Service | E22: =VLOOKUP(E$4,'Amortization Table'!$J:$M,4,FALSE) -> 11973.57561 | F22: =VLOOKUP(F$4,'Amortization Table'!$J:$M,4,FALSE) -> 11973.57561 | G22: =VLOOKUP(G$4,'Amortization Table'!$J:$M,4,FALSE) -> 11973.57561 | H22: =VLOOKUP(H$4,'Amortization Table'!$J:$M,4,FALSE) -> 11973.57561 | I22: =VLOOKUP(I$4,'Amortization Table'!$J:$M,4,FALSE) -> 11973.57561
C24: = Before Tax Cash Flow | E24: =E19-E21-E22 -> -1835.923795 | F24: =F19-F21-F22 -> -1675.710153 | G24: =G19-G21-G22 -> -1512.716813 | H24: =H19-H21-H22 -> -1346.868005 | I24: =I19-I21-I22 -> -1178.085242 | L24: Partitioning the IRR | O24: % of total PV
C26: - Taxes Due | E26: =IF(Inputs!J7<0,0,Inputs!J7*Inputs!$E$23) -> 0 | F26: =IF(Inputs!K7<0,0,Inputs!K7*Inputs!$E$23) -> 0 | G26: =IF(Inputs!L7<0,0,Inputs!L7*Inputs!$E$23) -> 0 | H26: =IF(Inputs!M7<0,0,Inputs!M7*Inputs!$E$23) -> 0 | I26: =IF(Inputs!N7<0,0,Inputs!N7*Inputs!$E$23) -> 0 | L26: Operating Cash Flow | M26: =NPV(N21,E29:I29) -> -1353.648309 | O26: =M26/M28 -> -0.07691183572
C27: + Tax Savings from Passive Activity Loss | E27: =IF(Inputs!J7<0,-Inputs!J7*Inputs!$E$23,0) -> 1338.839412 | F27: =IF(Inputs!K7<0,-Inputs!K7*Inputs!$E$23,0) -> 1261.298016 | G27: =IF(Inputs!L7<0,-Inputs!L7*Inputs!$E$23,0) -> 1181.534377 | H27: =IF(Inputs!M7<0,-Inputs!M7*Inputs!$E$23,0) -> 1099.467327 | I27: =IF(Inputs!N7<0,-Inputs!N7*Inputs!$E$23,0) -> 1015.012484 | L27: Sale of Property | M27: =NPV(N21,E32:I32) -> 18953.64831 | O27: =M27/M28 -> 1.076911836
L28: Total Present Value | M28: =SUM(M26:M27) -> 17600
C29: = After Tax Cash Flow from Operations | E29: =E24-E26+E27 -> -497.0843826 | F29: =F24-F26+F27 -> -414.4121367 | G29: =G24-G26+G27 -> -331.1824365 | H29: =H24-H26+H27 -> -247.4006781 | I29: =I24-I26+I27 -> -163.072758
C31: - Initial Equity Investment | D31: =-(Inputs!E4*Inputs!E5)-(Inputs!E7*Inputs!E4) -> -17600 | E31: 0 | F31: 0 | G31: 0 | H31: 0 | I31: 0
C32: + After Tax Cash on Sale (Reversion) | E32: 0 | F32: 0 | G32: 0 | H32: 0 | I32: =Inputs!E59 -> 28623.82563
C34: = Total After Tax Cash Flow | D34: =SUM(D29:D31) -> -17600 | E34: =SUM(E29:E32) -> -497.0843826 | F34: =SUM(F29:F32) -> -414.4121367 | G34: =SUM(G29:G32) -> -331.1824365 | H34: =SUM(H29:H32) -> -247.4006781 | I34: =SUM(I29:I32) -> 28460.75287

Sheet Inputs (hidden)
D3: Home Purchase Assumptions
D4: Buying Price: | E4: 220000
D5: Down Payment: | E5: 0.05 | H5: Less Annual Depreciation | J5: =((1-$E$8)*$E$4)/27.5 -> 7200 | K5: =((1-$E$8)*$E$4)/27.5 -> 7200 | L5: =((1-$E$8)*$E$4)/27.5 -> 7200 | M5: =((1-$E$8)*$E$4)/27.5 -> 7200 | N5: =((1-$E$8)*$E$4)/27.5 -> 7200
D6: PMI (estimate): | E6: 0.01 | H6: Plus Annual Principal Paid | J6: =-CUMPRINC($E$9/12,$E$10*12,$E$4*(1-$E$5),(12*RIGHT('Rental P&L'!D4,1))+1,(12*RIGHT('Rental P&L'!E4,1)),0) -> 3680.566145 | K6: =-CUMPRINC($E$9/12,$E$10*12,$E$4*(1-$E$5),(12*RIGHT('Rental P&L'!E4,1))+1,(12*RIGHT('Rental P&L'!F4,1)),0) -> 3830.518089 | L6: =-CUMPRINC($E$9/12,$E$10*12,$E$4*(1-$E$5),(12*RIGHT('Rental P&L'!F4,1))+1,(12*RIGHT('Rental P&L'!G4,1)),0) -> 3986.579306 | M6: =-CUMPRINC($E$9/12,$E$10*12,$E$4*(1-$E$5),(12*RIGHT('Rental P&L'!G4,1))+1,(12*RIGHT('Rental P&L'!H4,1)),0) -> 4148.998698 | N6: =-CUMPRINC($E$9/12,$E$10*12,$E$4*(1-$E$5),(12*RIGHT('Rental P&L'!H4,1))+1,(12*RIGHT('Rental P&L'!I4,1)),0) -> 4318.035307
D7: Buyer Closing Costs: | E7: 0.03 | H7: Taxable Income/ (Loss) | J7: ='Rental P&L'!E24-J5+J6 -> -5355.357649 | K7: ='Rental P&L'!F24-K5+K6 -> -5045.192063 | L7: ='Rental P&L'!G24-L5+L6 -> -4726.137507 | M7: ='Rental P&L'!H24-M5+M6 -> -4397.869307 | N7: ='Rental P&L'!I24-N5+N6 -> -4060.049935
D8: Land Allocation: | E8: 0.1
D9: Mortgage Interest Rate: | E9: 0.04 | P9: =CUMPRINC(E9/12,E10*12,E4,1/1/2000,12/31/2004,0) -> 
D10: # Years Loan: | E10: 30
D12: Rental Assumptions
D13: Rental Price (per month): | E13: 1500
D14: Other Income (per month): | E14: 0
D15: Vacancy (# of weeks out of the year): | E15: 4
D16: Property management fees (%): | E16: 0.1
D17: Property Taxes (annual): | E17: 1000
D18: Landlord insurance (annual): | E18: 963
D19: HOA fees (monthly): | E19: 50
D20: Repairs/maintenance (annual): | E20: 200
D22: Investor Assumptions
D23: Marginal Tax Rate: | E23: 0.25
D24: Cost of Capital: | E24: 0.08
D25: Recapture Tax Rate: | E25: 0.25
D27: Market Assumptions
D28: Rental Price Growth Rate: | E28: 0.01
D29: Operating Expenses Growth Rate: | E29: 0.01
D31: Home Selling Assumptions
D32: Appreciation Rate: | E32: 0.02
D33: Selling Closing Costs: | E33: 0.06
D38: Termination (Reversion) Statement
D40: Gross Future Sales Price | E40: =E4*(1+E32)^5 -> 242897.7767
D41: Less Selling Expenses | E41: =E40*E33 -> 14573.8666
D42: Net Sales Proceeds | E42: =E40-E41 -> 228323.9101
D43: Less Mortgage Balance | E43: ='Amortization Table'!G66 -> 189035.3025
D44: Before Tax Cash on Sale | E44: =E42-E43 -> 39288.60765
D46: Net Sales Proceeds | E46: =E42 -> 228323.9101
D47: Less Cost Basis | E47: =E4 -> 220000
D48: Capital Gain (Economic Gain) | E48: =E46-E47 -> 8323.910102
D49: X Capital Gains Rate | E49: 0.2
D50: Capital Gains Taxes | E50: =E49*E48 -> 1664.78202
D52: Accumulated Depreciation | E52: =SUM(J5:N5) -> 36000
D53: X Recapture Tax Rate | E53: =E25 -> 0.25
D54: Recapture Taxes | E54: =IF(E48>0,E52*E53,MAX((E52+E48)*E53,0)) -> 9000
D56: Before Tax Cash on Sale | E56: =E44 -> 39288.60765
D57: Less Capital Gains Taxes | E57: =E50 -> 1664.78202
D58: Less Recapture Taxes | E58: =E54 -> 9000
D59: After Tax Cash on Sale | E59: =E56-E57-E58 -> 28623.82563

Sheet lists (hidden)
A1: Purchase Prices | C1: Down Payment | E1: Buyer Closing Costs | G1: Land Allocation % | I1: Mortgage Interest Rate | K1: Rental Price (monthly) | M1: Property Management Fee | O1: Property Taxes | Q1: Landlord Insurance | S1: HOA Fees | U1: Repairs/Maintenance | W1: Marginal Tax Rates | Y1: Seller Closing Costs
A2: 100000 | C2: 0.035 | E2: 0.02 | G2: 0.1 | I2: 0.03 | K2: 800 | M2: 0 | O2: 500 | Q2: 500 | S2: 0 | U2: 0 | W2: 0.1 | Y2: 0.03
A3: =A2+20000 -> 120000 | C3: 0.05 | E3: 0.025 | G3: 0.2 | I3: =I2+0.25% -> 0.0325 | K3: =K2+100 -> 900 | M3: 0.01 | O3: =O2+100 -> 600 | Q3: =Q2+100 -> 600 | S3: 25 | U3: =U2+100 -> 100 | W3: 0.15 | Y3: 0.035
A4: =A3+20000 -> 140000 | C4: 0.1 | E4: 0.03 | G4: 0.3 | I4: =I3+0.25% -> 0.035 | K4: =K3+100 -> 1000 | M4: 0.02 | O4: =O3+100 -> 700 | Q4: 700 | S4: =S3+25 -> 50 | U4: 200 | W4: 0.25 | Y4: 0.04
A5: 160000 | C5: 0.15 | E5: 0.035 | G5: 0.4 | I5: 0.0375 | K5: 1100 | M5: 0.03 | O5: 800 | Q5: 800 | S5: 75 | U5: 300 | W5: 0.28 | Y5: 0.045
A6: 180000 | C6: 0.2 | E6: 0.04 | I6: 0.04 | K6: 1200 | M6: 0.04 | O6: 900 | Q6: 900 | S6: 100 | U6: 400 | W6: 0.33 | Y6: 0.05
A7: 200000 | I7: 0.0425 | K7: 1300 | M7: 0.05 | O7: 1000 | Q7: 1000 | S7: 125 | U7: 500 | W7: 0.35 | Y7: 0.055
A8: 220000 | I8: 0.045 | K8: 1400 | M8: 0.06 | O8: 1100 | Q8: 1100 | S8: 150 | U8: 600 | W8: 0.396 | Y8: 0.06
A9: 240000 | I9: 0.0475 | K9: 1500 | M9: 0.07 | O9: 1200 | Q9: 1200 | S9: 175 | U9: 700 | Y9: 0.065
A10: 260000 | I10: 0.05 | K10: 1600 | M10: 0.08 | O10: 1300 | Q10: 1300 | S10: 200 | U10: 800 | Y10: 0.07
A11: 280000 | I11: 0.0525 | K11: 1700 | M11: 0.09 | O11: 1400 | Q11: 1400 | U11: 900 | Y11: 0.075
A12: 300000 | I12: 0.055 | K12: 1800 | M12: 0.1 | O12: 1500 | Q12: 1500 | U12: 1000 | Y12: 0.08
A13: 320000 | I13: 0.0575 | K13: 1900 | M13: 0.11 | O13: 1600 | Q13: 1600 | U13: 1100
A14: 340000 | I14: 0.06 | K14: 2000 | M14: 0.12 | O14: 1700 | Q14: 1700 | U14: 1200
A15: 360000 | K15: 2100 | M15: 0.13 | O15: 1800 | Q15: 1800 | U15: 1300
A16: 380000 | K16: 2200 | M16: 0.14 | O16: 1900 | Q16: 1900 | U16: 1400
A17: 400000 | K17: 2300 | M17: 0.15 | O17: 2000 | Q17: 2000 | U17: =U16+100 -> 1500
A18: 420000 | K18: 2400 | U18: 1600
A19: 440000 | K19: 2500 | U19: 1700
A20: 460000 | U20: 1800
A21: 480000 | U21: 1900
A22: 500000 | U22: 2000

Sheet Amortization Table (hidden)
C1: =Inputs!E4 -> 220000 | D1: Home Value
C2: =Inputs!E5*'Amortization Table'!C1 -> 11000 | D2: Down Payment | F2: =Inputs!E9 -> 0.04 | G2: rate
C3: =C1-C2 -> 209000 | D3: Principal Value | F3: =Inputs!E10 -> 30 | G3: # of years
C6: BB Principal | D6: PMT | E6: Interest | F6: Principal | G6: EB Principal | K6: Principal Paid | L6: Interest Paid | M6: Total | N6: Total Principal Paid
A7: 1 | B7: Period 1 | C7: =C3 -> 209000 | D7: =-PMT($F$2/12,12*$F$3,$C$3,0) -> 997.7979675 | E7: =C7*$F$2/12 -> 696.6666667 | F7: =D7-E7 -> 301.1313009 | G7: =C7-F7 -> 208698.8687 | H7: 136.37 | J7: Year 1 | K7: =SUMIF($A$7:$A$366,RIGHT(J7,2),$F$7:$F$366) -> 3680.566145 | L7: =SUMIF($A$7:$A$366,RIGHT(J7,2),$E$7:$E$366) -> 8293.009465 | M7: =K7+L7 -> 11973.57561 | N7: =K7 -> 3680.566145
A8: 1 | B8: Period 2 | C8: =G7 -> 208698.8687 | D8: =-PMT($F$2/12,12*$F$3,$C$3,0) -> 997.7979675 | E8: =C8*$F$2/12 -> 695.6628957 | F8: =D8-E8 -> 302.1350719 | G8: =C8-F8 -> 208396.7336 | H8: =H7/G7 -> 0.0006534295123 | J8: Year 2 | K8: =SUMIF($A$7:$A$366,RIGHT(J8,2),$F$7:$F$366) -> 3830.518089 | L8: =SUMIF($A$7:$A$366,RIGHT(J8,2),$E$7:$E$366) -> 8143.057521 | M8: =K8+L8 -> 11973.57561 | N8: =K8+N7 -> 7511.084235
A9: 1 | B9: Period 3 | C9: =G8 -> 208396.7336 | D9: 997.7979675 | E9: =C9*$F$2/12 -> 694.6557788 | F9: =D9-E9 -> 303.1421888 | G9: =C9-F9 -> 208093.5914 | H9: =H7*12 -> 1636.44 | J9: Year 3 | K9: 3986.579306 | L9: 7986.996304 | M9: 11973.57561 | N9: =K9+N8 -> 11497.66354
A10: 1 | B10: Period 4 | C10: 208093.5914 | D10: 997.7979675 | E10: 693.6453048 | F10: 304.1526627 | G10: 207789.4388 | H10: =H9/G7 -> 0.007841154148 | J10: Year 4 | K10: 4148.998698 | L10: 7824.576912 | M10: 11973.57561 | N10: 15646.66224
A11: 1 | B11: Period 5 | C11: 207789.4388 | D11: 997.7979675 | E11: 692.6314626 | F11: 305.1665049 | G11: 207484.2723 | J11: Year 5 | K11: 4318.035307 | L11: 7655.540304 | M11: 11973.57561 | N11: 19964.69755
A12: 1 | B12: Period 6 | C12: 207484.2723 | D12: 997.7979675 | E12: 691.6142409 | F12: 306.1837266 | G12: 207178.0885 | J12: Year 6 | K12: 4493.958727 | L12: 7479.616883 | M12: 11973.57561 | N12: 24458.65627
A13: 1 | B13: Period 7 | C13: 207178.0885 | D13: 997.7979675 | E13: 690.5936285 | F13: 307.204339 | G13: 206870.8842 | J13: Year 7 | K13: 4677.04954 | L13: 7296.52607 | M13: 11973.57561 | N13: 29135.70581
A14: 1 | B14: Period 8 | C14: 206870.8842 | D14: 997.7979675 | E14: 689.569614 | F14: 308.2283535 | G14: 206562.6559 | J14: Year 8 | K14: 4867.599754 | L14: 7105.975856 | M14: 11973.57561 | N14: 34003.30557
A15: 1 | B15: Period 9 | C15: 206562.6559 | D15: 997.7979675 | E15: 688.5421862 | F15: 309.2557814 | G15: 206253.4001 | J15: Year 9 | K15: 5065.913279 | L15: 6907.662332 | M15: 11973.57561 | N15: 39069.21885
A16: 1 | B16: Period 10 | C16: 206253.4001 | D16: 997.7979675 | E16: 687.5113336 | F16: 310.286634 | G16: 205943.1134 | J16: Year 10 | K16: 5272.306402 | L16: 6701.269208 | M16: 11973.57561 | N16: 44341.52525
A17: 1 | B17: Period 11 | C17: 205943.1134 | D17: 997.7979675 | E17: 686.4770448 | F17: 311.3209227 | G17: 205631.7925 | J17: Year 11 | K17: 5487.1083 | L17: 6486.467311 | M17: 11973.57561 | N17: 49828.63355
A18: 1 | B18: Period 12 | C18: 205631.7925 | D18: 997.7979675 | E18: 685.4393084 | F18: 312.3586591 | G18: 205319.4339 | J18: Year 12 | K18: 5710.661558 | L18: 6262.914052 | M18: 11973.57561 | N18: 55539.29511
A19: =A18+1 -> 2 | B19: Period 13 | C19: 205319.4339 | D19: 997.7979675 | E19: 684.3981128 | F19: 313.3998547 | G19: 205006.034 | J19: Year 13 | K19: 5943.322721 | L19: 6030.25289 | M19: 11973.57561 | N19: 61482.61783
A20: =A19 -> 2 | B20: Period 14 | C20: 205006.034 | D20: 997.7979675 | E20: 683.3534467 | F20: 314.4445209 | G20: 204691.5895 | J20: Year 14 | K20: 6185.462858 | L20: 5788.112752 | M20: 11973.57561 | N20: 67668.08068
A21: =A20 -> 2 | B21: Period 15 | C21: 204691.5895 | D21: 997.7979675 | E21: 682.3052983 | F21: 315.4926693 | G21: 204376.0968 | J21: Year 15 | K21: 6437.468159 | L21: 5536.107451 | M21: 11973.57561 | N21: 74105.54884
A22: =A21 -> 2 | B22: Period 16 | C22: 204376.0968 | D22: 997.7979675 | E22: 681.253656 | F22: 316.5443115 | G22: 204059.5525 | J22: Year 16 | K22: 6699.740544 | L22: 5273.835066 | M22: 11973.57561 | N22: 80805.28939
A23: 2 | B23: Period 17 | C23: 204059.5525 | D23: 997.7979675 | E23: 680.1985083 | F23: 317.5994592 | G23: 203741.953 | J23: Year 17 | K23: 6972.698311 | L23: 5000.877299 | M23: 11973.57561 | N23: 87777.9877
A24: 2 | B24: Period 18 | C24: 203741.953 | D24: 997.7979675 | E24: 679.1398435 | F24: 318.6581241 | G24: 203423.2949 | J24: Year 18 | K24: 7256.776799 | L24: 4716.798812 | M24: 11973.57561 | N24: 95034.7645
A25: 2 | B25: Period 19 | C25: 203423.2949 | D25: 997.7979675 | E25: 678.0776497 | F25: 319.7203178 | G25: 203103.5746 | J25: Year 19 | K25: 7552.429082 | L25: 4421.146528 | M25: 11973.57561 | N25: 102587.1936
A26: 2 | B26: Period 20 | C26: 203103.5746 | D26: 997.7979675 | E26: 677.0119153 | F26: 320.7860522 | G26: 202782.7885 | J26: Year 20 | K26: 7860.126696 | L26: 4113.448915 | M26: 11973.57561 | N26: 110447.3203
A27: 2 | B27: Period 21 | C27: 202782.7885 | D27: 997.7979675 | E27: 675.9426285 | F27: 321.855339 | G27: 202460.9332 | J27: Year 21 | K27: 8180.360385 | L27: 3793.215225 | M27: 11973.57561 | N27: 118627.6807
A28: 2 | B28: Period 22 | C28: 202460.9332 | D28: 997.7979675 | E28: 674.8697774 | F28: 322.9281902 | G28: 202138.005 | J28: Year 22 | K28: 8513.640889 | L28: 3459.934722 | M28: 11973.57561 | N28: 127141.3215
A29: 2 | B29: Period 23 | C29: 202138.005 | D29: 997.7979675 | E29: 673.7933501 | F29: 324.0046175 | G29: 201814.0004 | J29: Year 23 | K29: 8860.499754 | L29: 3113.075856 | M29: 11973.57561 | N29: 136001.8213
A30: 2 | B30: Period 24 | C30: 201814.0004 | D30: 997.7979675 | E30: 672.7133347 | F30: 325.0846329 | G30: 201488.9158 | J30: Year 24 | K30: 9221.490185 | L30: 2752.085425 | M30: 11973.57561 | N30: 145223.3115
A31: =A30+1 -> 3 | B31: Period 25 | C31: 201488.9158 | D31: 997.7979675 | E31: 671.6297192 | F31: 326.1682483 | G31: 201162.7475 | J31: Year 25 | K31: 9597.187923 | L31: 2376.387687 | M31: 11973.57561 | N31: 154820.4994
A32: =A31 -> 3 | B32: Period 26 | C32: 201162.7475 | D32: 997.7979675 | E32: 670.5424917 | F32: 327.2554758 | G32: 200835.492 | J32: Year 26 | K32: 9988.192167 | L32: 1985.383443 | M32: 11973.57561 | N32: 164808.6916
A33: =A32 -> 3 | B33: Period 27 | C33: 200835.492 | D33: 997.7979675 | E33: 669.4516401 | F33: 328.3463274 | G33: 200507.1457 | J33: Year 27 | K33: 10395.12653 | L33: 1578.449083 | M33: 11973.57561 | N33: 175203.8181
A34: =A33 -> 3 | B34: Period 28 | C34: 200507.1457 | D34: 997.7979675 | E34: 668.3571524 | F34: 329.4408151 | G34: 200177.7049 | J34: Year 28 | K34: 10818.64002 | L34: 1154.93559 | M34: 11973.57561 | N34: 186022.4581
A35: 3 | B35: Period 29 | C35: 200177.7049 | D35: 997.7979675 | E35: 667.2590163 | F35: 330.5389512 | G35: 199847.1659 | J35: Year 29 | K35: 11259.40811 | L35: 714.167503 | M35: 11973.57561 | N35: 197281.8662
A36: 3 | B36: Period 30 | C36: 199847.1659 | D36: 997.7979675 | E36: 666.1572198 | F36: 331.6407477 | G36: 199515.5252 | J36: Year 30 | K36: 11718.13377 | L36: 255.4418443 | M36: 11973.57561 | N36: 209000
A37: 3 | B37: Period 31 | C37: 199515.5252 | D37: 997.7979675 | E37: 665.0517507 | F37: 332.7462169 | G37: 199182.779
A38: 3 | B38: Period 32 | C38: 199182.779 | D38: 997.7979675 | E38: 663.9425966 | F38: 333.8553709 | G38: 198848.9236
A39: 3 | B39: Period 33 | C39: 198848.9236 | D39: 997.7979675 | E39: 662.8297454 | F39: 334.9682221 | G39: 198513.9554
A40: 3 | B40: Period 34 | C40: 198513.9554 | D40: 997.7979675 | E40: 661.7131846 | F40: 336.0847829 | G40: 198177.8706
A41: 3 | B41: Period 35 | C41: 198177.8706 | D41: 997.7979675 | E41: 660.592902 | F41: 337.2050655 | G41: 197840.6655
A42: 3 | B42: Period 36 | C42: 197840.6655 | D42: 997.7979675 | E42: 659.4688851 | F42: 338.3290824 | G42: 197502.3365
A43: =A42+1 -> 4 | B43: Period 37 | C43: 197502.3365 | D43: 997.7979675 | E43: 658.3411215 | F43: 339.456846 | G43: 197162.8796
A44: =A43 -> 4 | B44: Period 38 | C44: 197162.8796 | D44: 997.7979675 | E44: 657.2095987 | F44: 340.5883688 | G44: 196822.2912
A45: =A44 -> 4 | B45: Period 39 | C45: 196822.2912 | D45: 997.7979675 | E45: 656.0743041 | F45: 341.7236634 | G45: 196480.5676
A46: =A45 -> 4 | B46: Period 40 | C46: 196480.5676 | D46: 997.7979675 | E46: 654.9352253 | F46: 342.8627423 | G46: 196137.7048
A47: 4 | B47: Period 41 | C47: 196137.7048 | D47: 997.7979675 | E47: 653.7923495 | F47: 344.0056181 | G47: 195793.6992
A48: 4 | B48: Period 42 | C48: 195793.6992 | D48: 997.7979675 | E48: 652.6456641 | F48: 345.1523035 | G48: 195448.5469
A49: 4 | B49: Period 43 | C49: 195448.5469 | D49: 997.7979675 | E49: 651.4951564 | F49: 346.3028111 | G49: 195102.2441
A50: 4 | B50: Period 44 | C50: 195102.2441 | D50: 997.7979675 | E50: 650.3408137 | F50: 347.4571538 | G50: 194754.787
A51: 4 | B51: Period 45 | C51: 194754.787 | D51: 997.7979675 | E51: 649.1826232 | F51: 348.6153443 | G51: 194406.1716
A52: 4 | B52: Period 46 | C52: 194406.1716 | D52: 997.7979675 | E52: 648.020572 | F52: 349.7773955 | G52: 194056.3942
A53: 4 | B53: Period 47 | C53: 194056.3942 | D53: 997.7979675 | E53: 646.8546474 | F53: 350.9433201 | G53: 193705.4509
A54: 4 | B54: Period 48 | C54: 193705.4509 | D54: 997.7979675 | E54: 645.6848363 | F54: 352.1131312 | G54: 193353.3378
A55: =A54+1 -> 5 | B55: Period 49 | C55: 193353.3378 | D55: 997.7979675 | E55: 644.5111259 | F55: 353.2868417 | G55: 193000.0509
A56: =A55 -> 5 | B56: Period 50 | C56: 193000.0509 | D56: 997.7979675 | E56: 643.3335031 | F56: 354.4644645 | G56: 192645.5865
A57: =A56 -> 5 | B57: Period 51 | C57: 192645.5865 | D57: 997.7979675 | E57: 642.1519548 | F57: 355.6460127 | G57: 192289.9404
A58: =A57 -> 5 | B58: Period 52 | C58: 192289.9404 | D58: 997.7979675 | E58: 640.9664681 | F58: 356.8314994 | G58: 191933.1089
A59: 5 | B59: Period 53 | C59: 191933.1089 | D59: 997.7979675 | E59: 639.7770298 | F59: 358.0209377 | G59: 191575.088
A60: 5 | B60: Period 54 | C60: 191575.088 | D60: 997.7979675 | E60: 638.5836267 | F60: 359.2143408 | G60: 191215.8737
A61: 5 | B61: Period 55 | C61: 191215.8737 | D61: 997.7979675 | E61: 637.3862455 | F61: 360.411722 | G61: 190855.4619
A62: 5 | B62: Period 56 | C62: 190855.4619 | D62: 997.7979675 | E62: 636.1848731 | F62: 361.6130944 | G62: 190493.8488
A63: 5 | B63: Period 57 | C63: 190493.8488 | D63: 997.7979675 | E63: 634.9794962 | F63: 362.8184714 | G63: 190131.0304
A64: 5 | B64: Period 58 | C64: 190131.0304 | D64: 997.7979675 | E64: 633.7701013 | F64: 364.0278663 | G64: 189767.0025
A65: 5 | B65: Period 59 | C65: 189767.0025 | D65: 997.7979675 | E65: 632.556675 | F65: 365.2412925 | G65: 189401.7612
A66: 5 | B66: Period 60 | C66: 189401.7612 | D66: 997.7979675 | E66: 631.3392041 | F66: 366.4587635 | G66: 189035.3025
A67: =A66+1 -> 6 | B67: Period 61 | C67: 189035.3025 | D67: 997.7979675 | E67: 630.1176748 | F67: 367.6802927 | G67: 188667.6222
A68: =A67 -> 6 | B68: Period 62 | C68: 188667.6222 | D68: 997.7979675 | E68: 628.8920739 | F68: 368.9058937 | G68: 188298.7163
A69: =A68 -> 6 | B69: Period 63 | C69: 188298.7163 | D69: 997.7979675 | E69: 627.6623876 | F69: 370.13558 | G69: 187928.5807
A70: =A69 -> 6 | B70: Period 64 | C70: 187928.5807 | D70: 997.7979675 | E70: 626.4286023 | F70: 371.3693652 | G70: 187557.2113
A71: 6 | B71: Period 65 | C71: 187557.2113 | D71: 997.7979675 | E71: 625.1907044 | F71: 372.6072631 | G71: 187184.6041
A72: 6 | B72: Period 66 | C72: 187184.6041 | D72: =-PMT($F$2/12,12*$F$3,$C$3,0) -> 997.7979675 | E72: 623.9486802 | F72: 373.8492873 | G72: 186810.7548
A73: 6 | B73: Period 67 | C73: =G72 -> 186810.7548 | D73: 997.7979675 | E73: =C73*$F$2/12 -> 622.7025159 | F73: =D73-E73 -> 375.0954516 | G73: =C73-F73 -> 186435.6593
A74: 6 | B74: Period 68 | C74: 186435.6593 | D74: 997.7979675 | E74: 621.4521977 | F74: 376.3457698 | G74: 186059.3136
A75: 6 | B75: Period 69 | C75: 186059.3136 | D75: 997.7979675 | E75: 620.1977118 | F75: 377.6002557 | G75: 185681.7133
A76: 6 | B76: Period 70 | C76: 185681.7133 | D76: 997.7979675 | E76: 618.9390443 | F76: 378.8589232 | G76: 185302.8544
A77: 6 | B77: Period 71 | C77: 185302.8544 | D77: 997.7979675 | E77: 617.6761812 | F77: 380.1217863 | G77: 184922.7326
A78: 6 | B78: Period 72 | C78: 184922.7326 | D78: 997.7979675 | E78: 616.4091086 | F78: 381.3888589 | G78: 184541.3437
A79: =A78+1 -> 7 | B79: Period 73 | C79: 184541.3437 | D79: 997.7979675 | E79: 615.1378124 | F79: 382.6601551 | G79: 184158.6836
A80: =A79 -> 7 | B80: Period 74 | C80: 184158.6836 | D80: 997.7979675 | E80: 613.8622786 | F80: 383.9356889 | G80: 183774.7479
A81: =A80 -> 7 | B81: Period 75 | C81: 183774.7479 | D81: 997.7979675 | E81: 612.5824929 | F81: 385.2154746 | G81: 183389.5324
A82: =A81 -> 7 | B82: Period 76 | C82: 183389.5324 | D82: 997.7979675 | E82: 611.2984414 | F82: 386.4995262 | G82: 183003.0329
A83: 7 | B83: Period 77 | C83: 183003.0329 | D83: 997.7979675 | E83: 610.0101096 | F83: 387.7878579 | G83: 182615.245
A84: 7 | B84: Period 78 | C84: 182615.245 | D84: 997.7979675 | E84: 608.7174834 | F84: 389.0804841 | G84: 182226.1645
A85: 7 | B85: Period 79 | C85: 182226.1645 | D85: 997.7979675 | E85: 607.4205485 | F85: 390.3774191 | G85: 181835.7871
A86: 7 | B86: Period 80 | C86: 181835.7871 | D86: 997.7979675 | E86: 606.1192904 | F86: 391.6786771 | G86: 181444.1084
A87: 7 | B87: Period 81 | C87: 181444.1084 | D87: 997.7979675 | E87: 604.8136948 | F87: 392.9842727 | G87: 181051.1242
A88: 7 | B88: Period 82 | C88: 181051.1242 | D88: 997.7979675 | E88: 603.5037472 | F88: 394.2942203 | G88: 180656.83
A89: 7 | B89: Period 83 | C89: 180656.83 | D89: 997.7979675 | E89: 602.1894332 | F89: 395.6085344 | G89: 180261.2214
A90: 7 | B90: Period 84 | C90: 180261.2214 | D90: 997.7979675 | E90: 600.8707381 | F90: 396.9272295 | G90: 179864.2942
A91: =A90+1 -> 8 | B91: Period 85 | C91: 179864.2942 | D91: 997.7979675 | E91: 599.5476473 | F91: 398.2503202 | G91: 179466.0439
A92: =A91 -> 8 | B92: Period 86 | C92: 179466.0439 | D92: 997.7979675 | E92: 598.2201462 | F92: 399.5778213 | G92: 179066.466
A93: =A92 -> 8 | B93: Period 87 | C93: 179066.466 | D93: 997.7979675 | E93: 596.8882202 | F93: 400.9097474 | G93: 178665.5563
A94: =A93 -> 8 | B94: Period 88 | C94: 178665.5563 | D94: 997.7979675 | E94: 595.5518543 | F94: 402.2461132 | G94: 178263.3102
A95: 8 | B95: Period 89 | C95: 178263.3102 | D95: 997.7979675 | E95: 594.211034 | F95: 403.5869336 | G95: 177859.7233
A96: 8 | B96: Period 90 | C96: 177859.7233 | D96: 997.7979675 | E96: 592.8657442 | F96: 404.9322234 | G96: 177454.791
A97: 8 | B97: Period 91 | C97: 177454.791 | D97: 997.7979675 | E97: 591.5159701 | F97: 406.2819974 | G97: 177048.509
A98: 8 | B98: Period 92 | C98: 177048.509 | D98: 997.7979675 | E98: 590.1616968 | F98: 407.6362708 | G98: 176640.8728
A99: 8 | B99: Period 93 | C99: 176640.8728 | D99: 997.7979675 | E99: 588.8029092 | F99: 408.9950583 | G99: 176231.8777
A100: 8 | B100: Period 94 | C100: 176231.8777 | D100: 997.7979675 | E100: 587.4395923 | F100: 410.3583752 | G100: 175821.5193
A101: 8 | B101: Period 95 | C101: 175821.5193 | D101: 997.7979675 | E101: 586.0717311 | F101: 411.7262364 | G101: 175409.7931
A102: 8 | B102: Period 96 | C102: 175409.7931 | D102: 997.7979675 | E102: 584.6993103 | F102: 413.0986572 | G102: 174996.6944
A103: =A102+1 -> 9 | B103: Period 97 | C103: 174996.6944 | D103: 997.7979675 | E103: 583.3223148 | F103: 414.4756527 | G103: 174582.2188
A104: =A103 -> 9 | B104: Period 98 | C104: 174582.2188 | D104: 997.7979675 | E104: 581.9407293 | F104: 415.8572383 | G104: 174166.3615
A105: =A104 -> 9 | B105: Period 99 | C105: 174166.3615 | D105: 997.7979675 | E105: 580.5545385 | F105: 417.2434291 | G105: 173749.1181
A106: =A105 -> 9 | B106: Period 100 | C106: 173749.1181 | D106: 997.7979675 | E106: 579.163727 | F106: 418.6342405 | G106: 173330.4839
A107: 9 | B107: Period 101 | C107: 173330.4839 | D107: 997.7979675 | E107: 577.7682796 | F107: 420.0296879 | G107: 172910.4542
A108: 9 | B108: Period 102 | C108: 172910.4542 | D108: 997.7979675 | E108: 576.3681806 | F108: 421.4297869 | G108: 172489.0244
A109: 9 | B109: Period 103 | C109: 172489.0244 | D109: 997.7979675 | E109: 574.9634147 | F109: 422.8345529 | G109: 172066.1898
A110: 9 | B110: Period 104 | C110: 172066.1898 | D110: 997.7979675 | E110: 573.5539661 | F110: 424.2440014 | G110: 171641.9458
A111: 9 | B111: Period 105 | C111: 171641.9458 | D111: 997.7979675 | E111: 572.1398195 | F111: 425.658148 | G111: 171216.2877
A112: 9 | B112: Period 106 | C112: 171216.2877 | D112: 997.7979675 | E112: 570.720959 | F112: 427.0770085 | G112: 170789.2107
A113: 9 | B113: Period 107 | C113: 170789.2107 | D113: 997.7979675 | E113: 569.297369 | F113: 428.5005986 | G113: 170360.7101
A114: 9 | B114: Period 108 | C114: 170360.7101 | D114: 997.7979675 | E114: 567.8690336 | F114: 429.9289339 | G114: 169930.7812
A115: =A114+1 -> 10 | B115: Period 109 | C115: 169930.7812 | D115: 997.7979675 | E115: 566.4359372 | F115: 431.3620303 | G115: 169499.4191
A116: =A115 -> 10 | B116: Period 110 | C116: 169499.4191 | D116: 997.7979675 | E116: 564.9980637 | F116: 432.7999038 | G116: 169066.6192
A117: =A116 -> 10 | B117: Period 111 | C117: 169066.6192 | D117: 997.7979675 | E117: 563.5553974 | F117: 434.2425701 | G117: 168632.3766
A118: =A117 -> 10 | B118: Period 112 | C118: 168632.3766 | D118: 997.7979675 | E118: 562.1079222 | F118: 435.6900454 | G118: 168196.6866
A119: 10 | B119: Period 113 | C119: 168196.6866 | D119: 997.7979675 | E119: 560.655622 | F119: 437.1423455 | G119: 167759.5443
A120: 10 | B120: Period 114 | C120: 167759.5443 | D120: 997.7979675 | E120: 559.1984809 | F120: 438.5994867 | G120: 167320.9448
A121: 10 | B121: Period 115 | C121: 167320.9448 | D121: 997.7979675 | E121: 557.7364826 | F121: 440.0614849 | G121: 166880.8833
A122: 10 | B122: Period 116 | C122: 166880.8833 | D122: 997.7979675 | E122: 556.269611 | F122: 441.5283566 | G122: 166439.3549
A123: 10 | B123: Period 117 | C123: 166439.3549 | D123: 997.7979675 | E123: 554.7978498 | F123: 443.0001178 | G123: 165996.3548
A124: 10 | B124: Period 118 | C124: 165996.3548 | D124: 997.7979675 | E124: 553.3211827 | F124: 444.4767848 | G124: 165551.878
A125: 10 | B125: Period 119 | C125: 165551.878 | D125: 997.7979675 | E125: 551.8395934 | F125: 445.9583741 | G125: 165105.9197
A126: 10 | B126: Period 120 | C126: 165105.9197 | D126: 997.7979675 | E126: 550.3530655 | F126: 447.444902 | G126: 164658.4748
A127: =A126+1 -> 11 | B127: Period 121 | C127: 164658.4748 | D127: 997.7979675 | E127: 548.8615825 | F127: 448.936385 | G127: 164209.5384
A128: =A127 -> 11 | B128: Period 122 | C128: 164209.5384 | D128: 997.7979675 | E128: 547.3651279 | F128: 450.4328396 | G128: 163759.1055
A129: =A128 -> 11 | B129: Period 123 | C129: 163759.1055 | D129: 997.7979675 | E129: 545.8636851 | F129: 451.9342824 | G129: 163307.1712
A130: =A129 -> 11 | B130: Period 124 | C130: 163307.1712 | D130: 997.7979675 | E130: 544.3572375 | F130: 453.44073 | G130: 162853.7305
A131: 11 | B131: Period 125 | C131: 162853.7305 | D131: 997.7979675 | E131: 542.8457684 | F131: 454.9521991 | G131: 162398.7783
A132: 11 | B132: Period 126 | C132: 162398.7783 | D132: 997.7979675 | E132: 541.3292611 | F132: 456.4687065 | G132: 161942.3096
A133: 11 | B133: Period 127 | C133: 161942.3096 | D133: 997.7979675 | E133: 539.8076987 | F133: 457.9902688 | G133: 161484.3193
A134: 11 | B134: Period 128 | C134: 161484.3193 | D134: 997.7979675 | E134: 538.2810645 | F134: 459.5169031 | G134: 161024.8024
A135: 11 | B135: Period 129 | C135: 161024.8024 | D135: 997.7979675 | E135: 536.7493415 | F135: 461.0486261 | G135: 160563.7538
A136: 11 | B136: Period 130 | C136: 160563.7538 | D136: =-PMT($F$2/12,12*$F$3,$C$3,0) -> 997.7979675 | E136: 535.2125127 | F136: 462.5854548 | G136: 160101.1684
A137: 11 | B137: Period 131 | C137: =G136 -> 160101.1684 | D137: 997.7979675 | E137: =C137*$F$2/12 -> 533.6705612 | F137: =D137-E137 -> 464.1274063 | G137: =C137-F137 -> 159637.041
A138: 11 | B138: Period 132 | C138: 159637.041 | D138: 997.7979675 | E138: 532.1234698 | F138: 465.6744977 | G138: 159171.3665
A139: =A138+1 -> 12 | B139: Period 133 | C139: 159171.3665 | D139: 997.7979675 | E139: 530.5712215 | F139: 467.226746 | G139: 158704.1397
A140: =A139 -> 12 | B140: Period 134 | C140: 158704.1397 | D140: 997.7979675 | E140: 529.013799 | F140: 468.7841685 | G140: 158235.3555
A141: =A140 -> 12 | B141: Period 135 | C141: 158235.3555 | D141: 997.7979675 | E141: 527.4511851 | F141: 470.3467824 | G141: 157765.0088
A142: =A141 -> 12 | B142: Period 136 | C142: 157765.0088 | D142: 997.7979675 | E142: 525.8833625 | F142: 471.914605 | G142: 157293.0942
A143: 12 | B143: Period 137 | C143: 157293.0942 | D143: 997.7979675 | E143: 524.3103138 | F143: 473.4876537 | G143: 156819.6065
A144: 12 | B144: Period 138 | C144: 156819.6065 | D144: 997.7979675 | E144: 522.7320217 | F144: 475.0659459 | G144: 156344.5406
A145: 12 | B145: Period 139 | C145: 156344.5406 | D145: 997.7979675 | E145: 521.1484685 | F145: 476.649499 | G145: 155867.8911
A146: 12 | B146: Period 140 | C146: 155867.8911 | D146: 997.7979675 | E146: 519.5596368 | F146: 478.2383307 | G146: 155389.6527
A147: 12 | B147: Period 141 | C147: 155389.6527 | D147: 997.7979675 | E147: 517.9655091 | F147: 479.8324585 | G147: 154909.8203
A148: 12 | B148: Period 142 | C148: 154909.8203 | D148: 997.7979675 | E148: 516.3660675 | F148: 481.4319 | G148: 154428.3884
A149: 12 | B149: Period 143 | C149: 154428.3884 | D149: 997.7979675 | E149: 514.7612945 | F149: 483.036673 | G149: 153945.3517
A150: 12 | B150: Period 144 | C150: 153945.3517 | D150: 997.7979675 | E150: 513.1511723 | F150: 484.6467952 | G150: 153460.7049
A151: =A150+1 -> 13 | B151: Period 145 | C151: 153460.7049 | D151: 997.7979675 | E151: 511.535683 | F151: 486.2622845 | G151: 152974.4426
A152: =A151 -> 13 | B152: Period 146 | C152: 152974.4426 | D152: 997.7979675 | E152: 509.9148087 | F152: 487.8831588 | G152: 152486.5595
A153: =A152 -> 13 | B153: Period 147 | C153: 152486.5595 | D153: 997.7979675 | E153: 508.2885315 | F153: 489.509436 | G153: 151997.05
A154: =A153 -> 13 | B154: Period 148 | C154: 151997.05 | D154: 997.7979675 | E154: 506.6568334 | F154: 491.1411341 | G154: 151505.9089
A155: 13 | B155: Period 149 | C155: 151505.9089 | D155: 997.7979675 | E155: 505.0196963 | F155: 492.7782713 | G155: 151013.1306
A156: 13 | B156: Period 150 | C156: 151013.1306 | D156: 997.7979675 | E156: 503.377102 | F156: 494.4208655 | G156: 150518.7097
A157: 13 | B157: Period 151 | C157: 150518.7097 | D157: 997.7979675 | E157: 501.7290325 | F157: 496.068935 | G157: 150022.6408
A158: 13 | B158: Period 152 | C158: 150022.6408 | D158: 997.7979675 | E158: 500.0754694 | F158: 497.7224982 | G158: 149524.9183
A159: 13 | B159: Period 153 | C159: 149524.9183 | D159: 997.7979675 | E159: 498.4163944 | F159: 499.3815732 | G159: 149025.5367
A160: 13 | B160: Period 154 | C160: 149025.5367 | D160: 997.7979675 | E160: 496.7517891 | F160: 501.0461784 | G160: 148524.4906
A161: 13 | B161: Period 155 | C161: 148524.4906 | D161: 997.7979675 | E161: 495.0816352 | F161: 502.7163323 | G161: 148021.7742
A162: 13 | B162: Period 156 | C162: 148021.7742 | D162: 997.7979675 | E162: 493.4059141 | F162: 504.3920534 | G162: 147517.3822
A163: =A162+1 -> 14 | B163: Period 157 | C163: 147517.3822 | D163: 997.7979675 | E163: 491.7246072 | F163: 506.0733603 | G163: 147011.3088
A164: =A163 -> 14 | B164: Period 158 | C164: 147011.3088 | D164: 997.7979675 | E164: 490.037696 | F164: 507.7602715 | G164: 146503.5485
A165: =A164 -> 14 | B165: Period 159 | C165: 146503.5485 | D165: 997.7979675 | E165: 488.3451618 | F165: 509.4528057 | G165: 145994.0957
A166: =A165 -> 14 | B166: Period 160 | C166: 145994.0957 | D166: 997.7979675 | E166: 486.6469858 | F166: 511.1509817 | G166: 145482.9448
A167: 14 | B167: Period 161 | C167: 145482.9448 | D167: 997.7979675 | E167: 484.9431492 | F167: 512.8548183 | G167: 144970.0899
A168: 14 | B168: Period 162 | C168: 144970.0899 | D168: 997.7979675 | E168: 483.2336331 | F168: 514.5643344 | G168: 144455.5256
A169: 14 | B169: Period 163 | C169: 144455.5256 | D169: 997.7979675 | E169: 481.5184187 | F169: 516.2795488 | G169: 143939.2461
A170: 14 | B170: Period 164 | C170: 143939.2461 | D170: 997.7979675 | E170: 479.7974868 | F170: 518.0004807 | G170: 143421.2456
A171: 14 | B171: Period 165 | C171: 143421.2456 | D171: 997.7979675 | E171: 478.0708186 | F171: 519.7271489 | G171: 142901.5184
A172: 14 | B172: Period 166 | C172: 142901.5184 | D172: 997.7979675 | E172: 476.3383947 | F172: 521.4595728 | G172: 142380.0589
A173: 14 | B173: Period 167 | C173: 142380.0589 | D173: 997.7979675 | E173: 474.6001962 | F173: 523.1977714 | G173: 141856.8611
A174: 14 | B174: Period 168 | C174: 141856.8611 | D174: 997.7979675 | E174: 472.8562036 | F174: 524.9417639 | G174: 141331.9193
A175: =A174+1 -> 15 | B175: Period 169 | C175: 141331.9193 | D175: 997.7979675 | E175: 471.1063977 | F175: 526.6915698 | G175: 140805.2277
A176: =A175 -> 15 | B176: Period 170 | C176: 140805.2277 | D176: 997.7979675 | E176: 469.3507592 | F176: 528.4472084 | G176: 140276.7805
A177: =A176 -> 15 | B177: Period 171 | C177: 140276.7805 | D177: 997.7979675 | E177: 467.5892685 | F177: 530.2086991 | G177: 139746.5718
A178: =A177 -> 15 | B178: Period 172 | C178: 139746.5718 | D178: 997.7979675 | E178: 465.8219061 | F178: 531.9760614 | G178: 139214.5958
A179: 15 | B179: Period 173 | C179: 139214.5958 | D179: 997.7979675 | E179: 464.0486526 | F179: 533.7493149 | G179: 138680.8465
A180: 15 | B180: Period 174 | C180: 138680.8465 | D180: 997.7979675 | E180: 462.2694882 | F180: 535.5284793 | G180: 138145.318
A181: 15 | B181: Period 175 | C181: 138145.318 | D181: 997.7979675 | E181: 460.4843933 | F181: 537.3135742 | G181: 137608.0044
A182: 15 | B182: Period 176 | C182: 137608.0044 | D182: 997.7979675 | E182: 458.693348 | F182: 539.1046195 | G182: 137068.8998
A183: 15 | B183: Period 177 | C183: 137068.8998 | D183: 997.7979675 | E183: 456.8963326 | F183: 540.9016349 | G183: 136527.9982
A184: 15 | B184: Period 178 | C184: 136527.9982 | D184: 997.7979675 | E184: 455.0933272 | F184: 542.7046403 | G184: 135985.2935
A185: 15 | B185: Period 179 | C185: 135985.2935 | D185: 997.7979675 | E185: 453.2843117 | F185: 544.5136558 | G185: 135440.7799
A186: 15 | B186: Period 180 | C186: 135440.7799 | D186: 997.7979675 | E186: 451.4692662 | F186: 546.3287013 | G186: 134894.4512
A187: =A186+1 -> 16 | B187: Period 181 | C187: 134894.4512 | D187: 997.7979675 | E187: 449.6481705 | F187: 548.149797 | G187: 134346.3014
A188: =A187 -> 16 | B188: Period 182 | C188: 134346.3014 | D188: 997.7979675 | E188: 447.8210045 | F188: 549.976963 | G188: 133796.3244
A189: =A188 -> 16 | B189: Period 183 | C189: 133796.3244 | D189: 997.7979675 | E189: 445.987748 | F189: 551.8102195 | G189: 133244.5142
A190: =A189 -> 16 | B190: Period 184 | C190: 133244.5142 | D190: 997.7979675 | E190: 444.1483806 | F190: 553.6495869 | G190: 132690.8646
A191: 16 | B191: Period 185 | C191: 132690.8646 | D191: 997.7979675 | E191: 442.302882 | F191: 555.4950856 | G191: 132135.3695
A192: 16 | B192: Period 186 | C192: 132135.3695 | D192: 997.7979675 | E192: 440.4512317 | F192: 557.3467358 | G192: 131578.0228
A193: 16 | B193: Period 187 | C193: 131578.0228 | D193: 997.7979675 | E193: 438.5934092 | F193: 559.2045583 | G193: 131018.8182
A194: 16 | B194: Period 188 | C194: 131018.8182 | D194: 997.7979675 | E194: 436.729394 | F194: 561.0685735 | G194: 130457.7496
A195: 16 | B195: Period 189 | C195: 130457.7496 | D195: 997.7979675 | E195: 434.8591655 | F195: 562.9388021 | G195: 129894.8108
A196: 16 | B196: Period 190 | C196: 129894.8108 | D196: 997.7979675 | E196: 432.9827028 | F196: 564.8152647 | G196: 129329.9956
A197: 16 | B197: Period 191 | C197: 129329.9956 | D197: 997.7979675 | E197: 431.0999852 | F197: 566.6979823 | G197: 128763.2976
A198: 16 | B198: Period 192 | C198: 128763.2976 | D198: 997.7979675 | E198: 429.210992 | F198: 568.5869756 | G198: 128194.7106
A199: =A198+1 -> 17 | B199: Period 193 | C199: 128194.7106 | D199: 997.7979675 | E199: 427.315702 | F199: 570.4822655 | G199: 127624.2283
A200: =A199 -> 17 | B200: Period 194 | C200: 127624.2283 | D200: =-PMT($F$2/12,12*$F$3,$C$3,0) -> 997.7979675 | E200: 425.4140945 | F200: 572.383873 | G200: 127051.8445
A201: =A200 -> 17 | B201: Period 195 | C201: =G200 -> 127051.8445 | D201: 997.7979675 | E201: =C201*$F$2/12 -> 423.5061482 | F201: =D201-E201 -> 574.2918193 | G201: =C201-F201 -> 126477.5527
A202: =A201 -> 17 | B202: Period 196 | C202: 126477.5527 | D202: 997.7979675 | E202: 421.5918422 | F202: 576.2061253 | G202: 125901.3465
... 164 more rows

Sheet to-do (hidden)
C3: setup P&L to be dynamic for how many years I want to hold onto it
C4: create dashboard of rental ratios
C5: look into pulling data from Zillow
C6: put in risk measures --- low, medium, high scenarios
C7: regression
C8: create a new tab that pasts favorites
C9: create a website link to rentometer.com
C10: make hi-medium-low case scenarios
C11: make system load default scenario

Sheet SC Home (hidden)
O1: Inputs:
D2: 2014 | E2: 2015 | F2: 2016 | G2: 2017 | H2: 2018 | R2: Termination (Reversion) Statement
C3: Year 0 | D3: Year 1 | E3: Year 2 | F3: Year 3 | G3: Year 4 | H3: Year 5 | R3: Gross Future Sales Price | S3: =O5*(1+O35)^5 -> 191447.6113 | T3: need to automate to correspond to # of years
B4: Potential Gross Income | D4: =$O$14*12 -> 17400 | E4: =(D4)*(1+$O$31) -> 17748 | F4: =(E4)*(1+$O$31) -> 18102.96 | G4: =(F4)*(1+$O$31) -> 18465.0192 | H4: =(G4)*(1+$O$31) -> 18834.31958 | N4: Home Purchase Info | R4: Less Selling Expenses | S4: =S3*O36 -> 11486.85668
B5: Less Vacancy & CL | D5: =($O$16/12)*D4 -> 725 | E5: =($O$16/12)*E4 -> 739.5 | F5: =($O$16/12)*F4 -> 754.29 | G5: =($O$16/12)*G4 -> 769.3758 | H5: =($O$16/12)*H4 -> 784.763316 | N5: Buying Price: | O5: 173400 | R5: Net Sales Proceeds | S5: =S3-S4 -> 179960.7546
B6: Plus Other Income | D6: =$O$15 -> 0 | E6: =$O$15 -> 0 | F6: =$O$15 -> 0 | G6: =$O$15 -> 0 | H6: =$O$15 -> 0 | N6: Down Payment: | O6: 0.2 | R6: Less Mortgage Balance | S6: ='Amortization Table'!G66 -> 189035.3025 | T6: need to automate to correspond to # of years
B7: Effective Gross Income | D7: =D4-D5+D6 -> 16675 | E7: =E4-E5+E6 -> 17008.5 | F7: =F4-F5+F6 -> 17348.67 | G7: =G4-G5+G6 -> 17695.6434 | H7: =H4-H5+H6 -> 18049.55627 | N7: PMI (estimate): | O7: 0 | R7: Before Tax Cash on Sale | S7: =S5-S6 -> -9074.547856
B8: Operating Expenses | N8: Buying Closing Costs: | O8: 0.03
B9: Property Taxes | D9: =$O$18 -> 1300 | E9: =D9*(1+$O$32) -> 1326 | F9: 1352.52 | G9: 1379.5704 | H9: 1407.161808 | N9: Land Allocation: | O9: 0.1 | R9: Net Sales Proceeds | S9: =S5 -> 179960.7546
B10: Condo Insurance | D10: =$O$19 -> 850 | E10: 867 | F10: 884.34 | G10: 902.0268 | H10: 920.067336 | N10: Mortgage Interest Rate: | O10: 0.0325 | R10: Less Cost Basis | S10: =O5 -> 173400
B11: Property Mgt. Fee | D11: =$O$17*D7 -> 1334 | E11: =$O$17*E7 -> 1360.68 | F11: =$O$17*F7 -> 1387.8936 | G11: =$O$17*G7 -> 1415.651472 | H11: =$O$17*H7 -> 1443.964501 | N11: # Years Loan: | O11: 30 | R11: Capital Gain (Economic Gain) | S11: =S9-S10 -> 6560.754598
B12: Association Fees | D12: =$O$20*12 -> 1620 | E12: =D12*(1+$O$32) -> 1652.4 | F12: 1685.448 | G12: 1719.15696 | H12: 1753.540099 | R12: X Capital Gains Rate | S12: 0.2
B13: Interior Maintenance | D13: =$O$21 -> 0 | E13: 0 | F13: 0 | G13: 0 | H13: 0 | N13: Rental Info | R13: Capital Gains Taxes | S13: =S12*S11 -> 1312.15092
B14: Total Oper. Expenses | D14: =SUM(D9:D13) -> 5104 | E14: =SUM(E9:E13) -> 5206.08 | F14: =SUM(F9:F13) -> 5310.2016 | G14: =SUM(G9:G13) -> 5416.405632 | H14: =SUM(H9:H13) -> 5524.733745 | N14: Rental Price (per month): | O14: 1450
B15: Net Operating Income | D15: =D7-D14 -> 11571 | E15: =E7-E14 -> 11802.42 | F15: =F7-F14 -> 12038.4684 | G15: =G7-G14 -> 12279.23777 | H15: =H7-H14 -> 12524.82252 | N15: Other Income (per month): | O15: 0 | R15: Accumulated Depreciation | S15: =SUM(D19:H19) -> 28374.54545 | T15: need to automate to correspond to # of years
B16: Less Annual Private Mortgage Ins. | D16: =$O$7*('Amortization Table'!$C$3-VLOOKUP(D$3,'Amortization Table'!$J:$N,5,FALSE)) -> 0 | E16: =$O$7*('Amortization Table'!$C$3-VLOOKUP(E$3,'Amortization Table'!$J:$N,5,FALSE)) -> 0 | F16: =$O$7*('Amortization Table'!$C$3-VLOOKUP(F$3,'Amortization Table'!$J:$N,5,FALSE)) -> 0 | G16: =$O$7*('Amortization Table'!$C$3-VLOOKUP(G$3,'Amortization Table'!$J:$N,5,FALSE)) -> 0 | H16: =$O$7*('Amortization Table'!$C$3-VLOOKUP(H$3,'Amortization Table'!$J:$N,5,FALSE)) -> 0 | N16: Vacancy (# of months out of the year): | O16: 0.5 | R16: X Recapture Tax Rate | S16: =O27 -> 0.25
B17: Less Annual Debt Service | D17: =VLOOKUP(D$3,'Amortization Table'!$J:$M,4,FALSE) -> 11973.57561 | E17: =VLOOKUP(E$3,'Amortization Table'!$J:$M,4,FALSE) -> 11973.57561 | F17: =VLOOKUP(F$3,'Amortization Table'!$J:$M,4,FALSE) -> 11973.57561 | G17: =VLOOKUP(G$3,'Amortization Table'!$J:$M,4,FALSE) -> 11973.57561 | H17: =VLOOKUP(H$3,'Amortization Table'!$J:$M,4,FALSE) -> 11973.57561 | N17: Property management fees (%): | O17: 0.08 | R17: Recapture Taxes | S17: =S16*S15 -> 7093.636364
B18: Before Tax Cash Flow | D18: =D15-D16-D17 -> -402.5756103 | E18: =E15-E16-E17 -> -171.1556103 | F18: =F15-F16-F17 -> 64.89278973 | G18: =G15-G16-G17 -> 305.6621577 | H18: =H15-H16-H17 -> 551.2469131 | N18: Property Taxes (annual): | O18: 1300
B19: Less Annual Depreciation | D19: =((1-$O$9)*$O$5)/27.5 -> 5674.909091 | E19: =((1-$O$9)*$O$5)/27.5 -> 5674.909091 | F19: =((1-$O$9)*$O$5)/27.5 -> 5674.909091 | G19: =((1-$O$9)*$O$5)/27.5 -> 5674.909091 | H19: =((1-$O$9)*$O$5)/27.5 -> 5674.909091 | N19: Landlord insurance (annual): | O19: 850 | R19: Before Tax Cash on Sale | S19: =S7 -> -9074.547856
B20: Plus Annual Principal Paid | D20: =VLOOKUP(D$3,'Amortization Table'!$J:$M,2,FALSE) -> 3680.566145 | E20: =VLOOKUP(E$3,'Amortization Table'!$J:$M,2,FALSE) -> 3830.518089 | F20: =VLOOKUP(F$3,'Amortization Table'!$J:$M,2,FALSE) -> 3986.579306 | G20: =VLOOKUP(G$3,'Amortization Table'!$J:$M,2,FALSE) -> 4148.998698 | H20: =VLOOKUP(H$3,'Amortization Table'!$J:$M,2,FALSE) -> 4318.035307 | N20: HOA fees (monthly): | O20: 135 | R20: Less Capital Gains Taxes | S20: =S13 -> 1312.15092
B21: Taxable Income/ (Loss) | D21: =D18-D19+D20 -> -2396.918556 | E21: =E18-E19+E20 -> -2015.546612 | F21: =F18-F19+F20 -> -1623.436995 | G21: =G18-G19+G20 -> -1220.248235 | H21: =H18-H19+H20 -> -805.6268712 | N21: Repairs/maintenance (annual): | O21: 0 | R21: Less Recapture Taxes | S21: =S17 -> 7093.636364
B22: Less Taxes Due | D22: =IF(D21<0,0,D21*$O$25) -> 0 | E22: =IF(E21<0,0,E21*$O$25) -> 0 | F22: =IF(F21<0,0,F21*$O$25) -> 0 | G22: =IF(G21<0,0,G21*$O$25) -> 0 | H22: =IF(H21<0,0,H21*$O$25) -> 0 | R22: After Tax Cash on Sale | S22: =S19-S20-S21 -> -17480.33514
B23: Tax Savings from PAL | D23: =IF(D22<0,D21*$O$25,0) -> 0 | E23: =IF(E22<0,E21*$O$25,0) -> 0 | F23: =IF(F22<0,F21*$O$25,0) -> 0 | G23: =IF(G22<0,G21*$O$25,0) -> 0 | H23: =IF(H22<0,H21*$O$25,0) -> 0
B24: After Tax Cash Flow from Operations | D24: =D18+D22-D23 -> -402.5756103 | E24: =E18+E22-E23 -> -171.1556103 | F24: =F18+F22-F23 -> 64.89278973 | G24: =G18+G22-G23 -> 305.6621577 | H24: =H18+H22-H23 -> 551.2469131 | N24: Investor Info
B25: Initial Equity Investment | D25: 0 | E25: 0 | F25: 0 | G25: 0 | H25: 0 | N25: Marginal Tax Rate: | O25: 0.25
B26: After Tax Cash on Sale (Reversion) | C26: =-(O5*O6)-(O8*O5) -> -39882 | D26: 0 | E26: 0 | F26: 0 | G26: 0 | H26: =S22 -> -17480.33514 | N26: Cost of Capital: | O26: 0.08
B27: Total After Tax Cash Flow | C27: =SUM(C24:C26) -> -39882 | D27: -402.5756103 | E27: -171.1556103 | F27: 64.89278973 | G27: 305.6621577 | H27: -16929.08823 | N27: Recapture Tax Rate: | O27: 0.25
C29: Low | D29: Medium | E29: High
B30: Payback Period | D30: =ROUND((ABS(C27)/ABS(D27)),1)&" years" -> 99.1 years | N30: Market Assumptions
B31: Profit Margin | D31: =D27/D7 -> -0.02414246538 | N31: Rental Price Growth Rate: | O31: 0.02
B32: Default Ratio | D32: =(D14+D17)/D7 -> 1.024142465 | N32: Operating Expenses Growth Rate: | O32: 0.02
B33: Operating Expense Ratio | D33: =D14/D7 -> 0.3060869565
B34: Debt-Coverage Ratio | D34: =D15/D17 -> 0.9663779957 | N34: Home Sales Info
B35: Loan-to-Value Ratio | D35: =(O5-O8-(O5*O6))/O5 -> 0.799999827 | N35: Appreciation Rate: | O35: 0.02
B36: EGI Multiplier | D36: =O5/D7 -> 10.3988006 | N36: Selling Closing Costs: | O36: 0.06
B37: CAP Rate | D37: =D15/O5 -> 0.06673010381
B38: BTCF Return | D38: =-D18/C26 -> -0.01009416805
B39: ATCF Return | D39: =-D24/C26 -> -0.01009416805
B40: NPV | D40: =NPV(O26,D27:H27)+C27 -> -51646.96173
B41: IRR | D41: =IF(D40<0,"n/a",IRR(C27:H27)) -> n/a
